Workbook

Sheet Information
A1: Schablonmodell, trafiksäkerhets-, restids- och CO2-effekter - RHA regionala hastighetsanalyser, 2023.1
A3: Indata: | B3: Fylls i de grå fälten och tryck "Starta" för att se resultat, avvakta tills makrot har kört klart.
B4: Hela den grå raden på Indata och Resultat måste vara ifylld för att makrot ska fungera
A5: Löpnummer
A6: Region
A7: Län
A8: Vägnummer
A9: Objektnamn: | B9: Förslagsvis namn som används i RHA
A10: Vägkategori: | B10: Ange europaväg, länsväg eller riksväg
A11: Trafikflöde: | B11: Fordon per dygn 2025. Vänligen använd fliken "Beräkna ÅDT"
A12: Längd: | B12: Km. Längd och trafikflöde antas konstant före/efter
A13: Vägtyp före: | B13: GIF om genomfart i tätortsmiljö, 2kf om landsväg, MLV eller MV
A14: Skyltad hastighet före: | B14: Avser huvudsaklig skyltad hastighetsgräns före. GIF 50 eller 70, 2 kf 70, 90 eller 100 och för MLV 90, 100 eller 110
A15: ATK före: | B15: Ja eller Nej. Vid ATK innan så antas ATK efter och tvärt om
A16: Landsbygd eller tätort: | B16: Ger potens enligt effektkatalogen, kap 6, se flik Trafiksäkerhet U3:W5. GIF=tätort och 2kf/MLV/MV=landsbygd
A17: Ombyggnad till: | B17: RHA beräknar enbart effekter vid hastighetsförändringar, vid ombyggnation bör istället EVA användas (är nu en dold flik)
A18: Beräkningsmetod: | B18: Beräkningar i gula fält, har dolts
A19: Hastighet före ATK: | B19: Medelhastighet skattas enligt Effektkatalogsamband för typisk timhastighet.
B20: Linjeföring SK1 till SK2. Inga korsningar med större inverkan på medelhastighet sett över hela sträckan.
A21: Hastighet före med ATK: | B21: Beräknas enligt Effektkatalogen kap 4.5.10 ATK, se Hastighet K5:P15
A22: Hastigheter efter utan ATK: | B22: Beräknas med uppskattningar enligt utvärdering översyn, se hastighet R28:U34
A23: Andelar personbilar och lastbilar med och utan släp | B23: Använd senaste mätning på Trafikflödeskartan: http://vtf.trafikverket.se/SeTrafikfloden
A24: ATK-effekter: | B24: Enligt effektkatalog 4.10, se hastighet V4:Y21
A25: Trafiksäkerhet före: | B25: Före-utfall beräknas enligt effektkatalog med schablontillägg korsningar, se trafiksäkerhet H2:N18
A26: Trafiksäkerhetseffkter: | B26: Med potensmodell, se Trafiksäkerhet U3:W5
A27: Koldioxideffekter: | B27: Beräknas enligt CO2 effekter enligt beslutad politik, indata från Helen Lindblom
A28: Resultat: | B28: Restid i de ljusblå
B29: Trafiksäkerhetseffekter ges i de gröna fälten
B30: Koldioxideffekter ges i de oranga fälten
B31: Summa av respektive effekt återfinns längst ner i "Indata & resultat"
B33: Tryck på "Radera" för att återställa beräkningarna
B35: Vid frågor eller synpunkter, vänligen kontakta:
B36: Magdalena Wande
B37: PLee

Sheet Indata & Resultat
A1: =Information!A1 -> Schablonmodell, trafiksäkerhets-, restids- och CO2-effekter - RHA regionala hastighetsanalyser, 2023.1 | L1: Ombyggnad | M1: EFTER ÅTGÄRD Skyltad hastighet | N1: ATK
M2: Alternativ: | N2: Alternativ:
L3: Ombyggnad finns inte som alternativ längre, vänligen välj "Nej" | M3: GIF50 före: 40 | N3: Om ATK före åtgärd så måste det finnas efter. Det går att lägga till ATK för: GIF50 GIF70 2kf70 2kf90
M4: GIF70 före:60
A5: Indata: | I5: FÖRE ÅTGÄRD | M5: 2kf90 före:80
F6: Vägkategori | G6: Trafikflöde | H6: Längd | I6: Vägtyp | J6: Skyltad hastighet | K6: ATK | M6: 2kf100 före:80
F7: Alternativ: | G7: (f/dygn) | H7: (km) | I7: Alternativ: | J7: Alternativ: | K7: Alternativ: | M7: MLV90 före: 100 | BM7: per mapkm
F8: Europaväg Riksväg Länsväg | G8: Ska avse 2025 medeluppräkning | H8: Antas vara samma före och efter | I8: 2kf tätort = GIF 2kf landbyggd = 2kf Mötesfri landsväg = MLV Motorväg = MV | J8: GIF: 50, 70 | K8: Ja eller Nej MV ej ATK | M8: MLV110 före: 100 | P8: Andelar personbilar och lastbilar med och utan släp. Anges i % | AG8: RESULTAT | AR8: Efter | BI8: Tidseffekter (-minskning) | BQ8: Trafiksäkerhet | BS8: CO2 FÖRE | CB8: CO2 EFTER | CK8: Klimat
J9: 2kf: 70, 90, 100 MLV:90,110 MV: 110 | M9: MV110 före: 120 | O9: Beräkning | S9: Hastighet relativt pb | U9: "Hastighet före ATK" | X9: Konstanter AC ATK formel | AB9: Hastigheter före efter ATK | AG9: Pb | AH9: Lb | AI9: Lbs | AJ9: Tot | AK9: Resulterande medelhastighet före | AR9: Beräkning om alt nr = | BB9: Medelhastighet efter | BI9: timmar/år | BM9: Före | BO9: Efter | BQ9: D/år (-minskning) | BR9: SS/år (-minskning) | BS9: pb | BU9: CO2 g/fkm | BV9: lb | BX9: CO2 g/fkm | BY9: lbs | CA9: CO2 g/fkm | CB9: pb | CD9: CO2 g/fkm | CE9: lb | CG9: CO2 g/fkm | CH9: lbs | CJ9: CO2 g/fkm | CK9: Resultat CO2 kiloton/år (-minskning)
A10: Löpnr | B10: Reg | C10: Län | D10: Vägnr | E10: Objektnamn | F10: Vägkategori | G10: ÅDT | H10: Längd (km) | I10: VägTyp | J10: Skyltad hastighet | K10: ATK | L10: Ombyggnad | M10: Hastighetsgräns | N10: ATK Efter | O10: Alt Nr | P10: Pb | Q10: Lb | R10: Lbs | S10: Lb Rel | T10: Lbs Rel | U10: Vpb | V10: Vlb | W10: Vlbs | X10: A pb | Y10: A lb | Z10: A lbs | AA10: Lb korr | AB10: Vpb2 | AC10: Vlb2 | AD10: Vlb Slut | AE10: Vlbs2 | AF10: Vlbs slut | AG10: Pb fkm | AH10: Lb fkm | AI10: Lbs fkm | AJ10: Tot fkm | AK10: PbMedel | AL10: LbMedel | AM10: LbsMedel | AN10: PbLbLbsMedel | AO10: PbMedel1 | AP10: LbMedel1 | AQ10: LbsMedel1 | AR10: Alt1 | AS10: Alt2 | AT10: Alt3 | AU10: Alt4 | AV10: Alt5 | AW10: Alt7 | AX10: Alt8 | AY10: Alt9 | AZ10: Alt10 | BA10: AltEfter | BB10: PbEfter | BC10: LbEfter | BD10: LbsEfter | BE10: PbLbLbsEfter | BF10: PbEfter1 | BG10: LbEfter1 | BH10: LbsEfter1 | BI10: Resultat Pb | BJ10: Resultat Lb | BK10: Resultat Lbs | BL10: Resultat tot | BM10: DkFöre | BN10: SskFöre | BO10: DkEfter | BP10: SskEfter | BQ10: DkResultat | BR10: SskResultat | BS10: CO2 före pb | BT10: CO2 före pb1 | BU10: CO2 före pb res | BV10: CO2 före lb | BW10: CO2 före lb1 | BX10: CO2 före lb res | BY10: CO2 före lbs | BZ10: CO2 före lbs1 | CA10: CO2 före lbs res | CB10: CO2 efter pb | CC10: CO2 efter pb1 | CD10: CO2 efter pb res | CE10: CO2 efter lb | CF10: CO2 efter lb1 | CG10: CO2 efter lb res | CH10: CO2 efter lbs | CI10: CO2 efter lbs1 | CJ10: CO2 efter lbs res | CK10: CO2 pb | CL10: CO2 lb | CM10: CO2 lbs | CN10: CO2 tot | CO10: Kolumn1 | CP10: Kolumn2 | CQ10: Kolumn3 | CR10: Kolumn4 | CS10: Kolumn5 | CT10: Kolumn6 | CU10: Kolumn7 | CV10: Kolumn8
R11: =IF(AND($P11>0%,$Q11>0%),100%-SUM($P11:$Q11),"") -> 
L29: =IF(G29>0,"Nej","") -> 
R43: =IF(AND($P43>0%,$Q43>0%),100%-SUM($P43:$Q43),"") -> 
R75: =IF(AND($P75>0%,$Q75>0%),100%-SUM($P75:$Q75),"") -> 
L90: =IF(G90>0,"Nej","") -> 
R92: Summa | BI92: =SUM(RHA[Resultat Pb]) -> 0 | BJ92: =SUM(RHA[Resultat Lb]) -> 0 | BK92: =SUM(RHA[Resultat Lbs]) -> 0 | BL92: =SUM(RHA[Resultat tot]) -> 0 | BQ92: =SUM(RHA[DkResultat]) -> 0 | BR92: =SUM(RHA[SskResultat]) -> 0 | CK92: =SUM(RHA[CO2 pb]) -> 0 | CL92: =SUM(RHA[CO2 lb]) -> 0 | CM92: =SUM(RHA[CO2 lbs]) -> 0 | CN92: =SUM(RHA[CO2 tot]) -> 0

Sheet Beräkna ÅDT
A1: Beräkning av ÅDT
A2: Plats - Sträcka | B2: Beskrivning av vilken stäcka som avses
A3: Vägtyp | B3: Europaväg, Riksväg eller Länsväg
A4: Län - Lastbil | B4: Välj län utefter geografisk plats, tabell J10:L32
A5: Grupp - Personbil | B5: Välj grupp utefter geografisk plats K37:M66, respektive kommuns gruppnummer återfinns i tabellen K68:L358
A6: ÅDT enligt TFK/TIKK | B6: Återfinns på respektive länk i Trafikflödeskartan, använd senaste mätning | E6: http://vtf.trafikverket.se/SeTrafikinformation# | J6: Trafikuppräkningstal för EVA och manuella beräkningar 2017-2040
A7: Året för senaste trafikmätning enligt TFK/TIKK | B7: Återfinns på respektive länk i Trafikflödeskartan, använd senaste mätning | E7: http://vtf.trafikverket.se/SeTrafikinformation# | J7: Trafikuppräkningstal finns på EVA:s sida på Trafikverket
A8: Trafikuppräkning antal år | B8: Beräknas automatiskt: 2025-Året för senaste trafikmätning | J8: Nedanstående trafikuppräkningstal gäller fr.o.m. 2020-06-15
A9: ÅDT2025 | B9: Kopiera och använd i "Indata & Resultat" för respektive stäcka
A11: Plats - Sträcka | B11: Vägtyp | C11: Län - Lastbil | D11: Grupp - Personbil | E11: ÅDT enl. vägtrafikflödeskartan (TFK) | F11: Senaste året för trafikmätning enl. TFK/TIKK | G11: Trafikuppräkning antal år | H11: ÅDT 2025 (utifrån gällande trafikuppräkningstal) | J11: LASTBIL - Län | K11: Prognos 2017-2040 [kvot] | L11: Årlig % tillväxt (kvot omräknad från 2040-2017=23 år)
G12: =IF(F12>0,2025-F12,"0") -> 0 | H12: =E12*IF(B12="Europaväg",0.14,0.08)*((1+VLOOKUP(C12,Tabell4[],3,FALSE))^G12)+E12*IF(B12="Europaväg",0.86,0.92)*((1+VLOOKUP(D12,Tabell5[],3,FALSE))^G12) ->  | J12: Stockholm | K12: 1.515768951 | L12: =(K12^(1/23))-1 -> 0.01824810142
G13: 0 | H13: =E13*IF(B13="Europaväg",0.14,0.08)*((1+VLOOKUP(C13,Tabell4[],3,FALSE))^G13)+E13*IF(B13="Europaväg",0.86,0.92)*((1+VLOOKUP(D13,Tabell5[],3,FALSE))^G13) ->  | J13: Uppsala | K13: 1.558500032 | L13: 0.01947964066
G14: 0 | H14: =E14*IF(B14="Europaväg",0.14,0.08)*((1+VLOOKUP(C14,Tabell4[],3,FALSE))^G14)+E14*IF(B14="Europaväg",0.86,0.92)*((1+VLOOKUP(D14,Tabell5[],3,FALSE))^G14) ->  | J14: Södermanland | K14: 1.470513198 | L14: 0.01690704875
G15: 0 | H15: =E15*IF(B15="Europaväg",0.14,0.08)*((1+VLOOKUP(C15,Tabell4[],3,FALSE))^G15)+E15*IF(B15="Europaväg",0.86,0.92)*((1+VLOOKUP(D15,Tabell5[],3,FALSE))^G15) ->  | J15: Östergötland | K15: 1.406474814 | L15: 0.01494035305
G16: 0 | H16: =E16*IF(B16="Europaväg",0.14,0.08)*((1+VLOOKUP(C16,Tabell4[],3,FALSE))^G16)+E16*IF(B16="Europaväg",0.86,0.92)*((1+VLOOKUP(D16,Tabell5[],3,FALSE))^G16) ->  | J16: Jönköping | K16: 1.431658493 | L16: 0.01572379717
G17: 0 | H17: =E17*IF(B17="Europaväg",0.14,0.08)*((1+VLOOKUP(C17,Tabell4[],3,FALSE))^G17)+E17*IF(B17="Europaväg",0.86,0.92)*((1+VLOOKUP(D17,Tabell5[],3,FALSE))^G17) ->  | J17: Kronoberg | K17: 1.525592912 | L17: 0.01853414802
G18: 0 | H18: =E18*IF(B18="Europaväg",0.14,0.08)*((1+VLOOKUP(C18,Tabell4[],3,FALSE))^G18)+E18*IF(B18="Europaväg",0.86,0.92)*((1+VLOOKUP(D18,Tabell5[],3,FALSE))^G18) ->  | J18: Kalmar | K18: 1.394546964 | L18: 0.01456459303
G19: 0 | H19: =E19*IF(B19="Europaväg",0.14,0.08)*((1+VLOOKUP(C19,Tabell4[],3,FALSE))^G19)+E19*IF(B19="Europaväg",0.86,0.92)*((1+VLOOKUP(D19,Tabell5[],3,FALSE))^G19) ->  | J19: Gotland | K19: 1.107416907 | L19: 0.004445949358
G20: 0 | H20: =E20*IF(B20="Europaväg",0.14,0.08)*((1+VLOOKUP(C20,Tabell4[],3,FALSE))^G20)+E20*IF(B20="Europaväg",0.86,0.92)*((1+VLOOKUP(D20,Tabell5[],3,FALSE))^G20) ->  | J20: Blekinge | K20: 1.576073656 | L20: 0.01997677524
G21: 0 | H21: =E21*IF(B21="Europaväg",0.14,0.08)*((1+VLOOKUP(C21,Tabell4[],3,FALSE))^G21)+E21*IF(B21="Europaväg",0.86,0.92)*((1+VLOOKUP(D21,Tabell5[],3,FALSE))^G21) ->  | J21: Skåne | K21: 1.482326742 | L21: 0.0172608844
G22: 0 | H22: =E22*IF(B22="Europaväg",0.14,0.08)*((1+VLOOKUP(C22,Tabell4[],3,FALSE))^G22)+E22*IF(B22="Europaväg",0.86,0.92)*((1+VLOOKUP(D22,Tabell5[],3,FALSE))^G22) ->  | J22: Halland | K22: 1.524503524 | L22: 0.01850251506
G23: 0 | H23: =E23*IF(B23="Europaväg",0.14,0.08)*((1+VLOOKUP(C23,Tabell4[],3,FALSE))^G23)+E23*IF(B23="Europaväg",0.86,0.92)*((1+VLOOKUP(D23,Tabell5[],3,FALSE))^G23) ->  | J23: Västra Götaland | K23: 1.479309862 | L23: 0.01717078088
G24: 0 | H24: =E24*IF(B24="Europaväg",0.14,0.08)*((1+VLOOKUP(C24,Tabell4[],3,FALSE))^G24)+E24*IF(B24="Europaväg",0.86,0.92)*((1+VLOOKUP(D24,Tabell5[],3,FALSE))^G24) ->  | J24: Värmland | K24: 1.568856481 | L24: 0.01977325571
G25: 0 | H25: =E25*IF(B25="Europaväg",0.14,0.08)*((1+VLOOKUP(C25,Tabell4[],3,FALSE))^G25)+E25*IF(B25="Europaväg",0.86,0.92)*((1+VLOOKUP(D25,Tabell5[],3,FALSE))^G25) ->  | J25: Örebro | K25: 1.361303421 | L25: 0.01350087425
G26: 0 | H26: =E26*IF(B26="Europaväg",0.14,0.08)*((1+VLOOKUP(C26,Tabell4[],3,FALSE))^G26)+E26*IF(B26="Europaväg",0.86,0.92)*((1+VLOOKUP(D26,Tabell5[],3,FALSE))^G26) ->  | J26: Västmanland | K26: 1.495266039 | L26: 0.01764535635
G27: 0 | H27: =E27*IF(B27="Europaväg",0.14,0.08)*((1+VLOOKUP(C27,Tabell4[],3,FALSE))^G27)+E27*IF(B27="Europaväg",0.86,0.92)*((1+VLOOKUP(D27,Tabell5[],3,FALSE))^G27) ->  | J27: Dalarna | K27: 1.319516608 | L27: 0.01212797477
G28: 0 | H28: =E28*IF(B28="Europaväg",0.14,0.08)*((1+VLOOKUP(C28,Tabell4[],3,FALSE))^G28)+E28*IF(B28="Europaväg",0.86,0.92)*((1+VLOOKUP(D28,Tabell5[],3,FALSE))^G28) ->  | J28: Gävleborg | K28: 1.400497528 | L28: 0.01475243476
G29: 0 | H29: =E29*IF(B29="Europaväg",0.14,0.08)*((1+VLOOKUP(C29,Tabell4[],3,FALSE))^G29)+E29*IF(B29="Europaväg",0.86,0.92)*((1+VLOOKUP(D29,Tabell5[],3,FALSE))^G29) ->  | J29: Västernorrland | K29: 1.287595177 | L29: 0.01105088771
G30: 0 | H30: =E30*IF(B30="Europaväg",0.14,0.08)*((1+VLOOKUP(C30,Tabell4[],3,FALSE))^G30)+E30*IF(B30="Europaväg",0.86,0.92)*((1+VLOOKUP(D30,Tabell5[],3,FALSE))^G30) ->  | J30: Jämtland | K30: 1.3371682 | L30: 0.01271291742
G31: 0 | H31: =E31*IF(B31="Europaväg",0.14,0.08)*((1+VLOOKUP(C31,Tabell4[],3,FALSE))^G31)+E31*IF(B31="Europaväg",0.86,0.92)*((1+VLOOKUP(D31,Tabell5[],3,FALSE))^G31) ->  | J31: Västerbotten | K31: 1.269585097 | L31: 0.01043186916
G32: 0 | H32: =E32*IF(B32="Europaväg",0.14,0.08)*((1+VLOOKUP(C32,Tabell4[],3,FALSE))^G32)+E32*IF(B32="Europaväg",0.86,0.92)*((1+VLOOKUP(D32,Tabell5[],3,FALSE))^G32) ->  | J32: Norrbotten | K32: 1.320866165 | L32: 0.01217296017
G33: 0 | H33: =E33*IF(B33="Europaväg",0.14,0.08)*((1+VLOOKUP(C33,Tabell4[],3,FALSE))^G33)+E33*IF(B33="Europaväg",0.86,0.92)*((1+VLOOKUP(D33,Tabell5[],3,FALSE))^G33) ->  | J33: Riket | K33: 1.433470066 | L33: 0.01577964438
G34: 0 | H34: =E34*IF(B34="Europaväg",0.14,0.08)*((1+VLOOKUP(C34,Tabell4[],3,FALSE))^G34)+E34*IF(B34="Europaväg",0.86,0.92)*((1+VLOOKUP(D34,Tabell5[],3,FALSE))^G34) -> 
G35: 0 | H35: =E35*IF(B35="Europaväg",0.14,0.08)*((1+VLOOKUP(C35,Tabell4[],3,FALSE))^G35)+E35*IF(B35="Europaväg",0.86,0.92)*((1+VLOOKUP(D35,Tabell5[],3,FALSE))^G35) ->  | J35: PERSONBIL - Grupp | K35: Prognos 2017-2040 [kvot] | L35: Årlig % tillväxt (kvot omräknad från 2040-2017=23 år) | M35: Grupp
G36: 0 | H36: =E36*IF(B36="Europaväg",0.14,0.08)*((1+VLOOKUP(C36,Tabell4[],3,FALSE))^G36)+E36*IF(B36="Europaväg",0.86,0.92)*((1+VLOOKUP(D36,Tabell5[],3,FALSE))^G36) ->  | J36: Stockholm | K36: 1.429189682 | L36: =(K36^(1/23))-1 -> 0.01564757969 | M36: 10
G37: 0 | H37: =E37*IF(B37="Europaväg",0.14,0.08)*((1+VLOOKUP(C37,Tabell4[],3,FALSE))^G37)+E37*IF(B37="Europaväg",0.86,0.92)*((1+VLOOKUP(D37,Tabell5[],3,FALSE))^G37) ->  | J37: Uppsala | K37: 1.290114095 | L37: 0.0111368037 | M37: 30
G38: 0 | H38: =E38*IF(B38="Europaväg",0.14,0.08)*((1+VLOOKUP(C38,Tabell4[],3,FALSE))^G38)+E38*IF(B38="Europaväg",0.86,0.92)*((1+VLOOKUP(D38,Tabell5[],3,FALSE))^G38) ->  | J38: Södermanland | K38: 1.327906195 | L38: 0.01240691821 | M38: 40
G39: 0 | H39: =E39*IF(B39="Europaväg",0.14,0.08)*((1+VLOOKUP(C39,Tabell4[],3,FALSE))^G39)+E39*IF(B39="Europaväg",0.86,0.92)*((1+VLOOKUP(D39,Tabell5[],3,FALSE))^G39) ->  | J39: Östergötland | K39: 1.253621868 | L39: 0.009876139723 | M39: 50
G40: 0 | H40: =E40*IF(B40="Europaväg",0.14,0.08)*((1+VLOOKUP(C40,Tabell4[],3,FALSE))^G40)+E40*IF(B40="Europaväg",0.86,0.92)*((1+VLOOKUP(D40,Tabell5[],3,FALSE))^G40) ->  | J40: Jönköping | K40: 1.293544349 | L40: 0.01125354608 | M40: 60
G41: 0 | H41: =E41*IF(B41="Europaväg",0.14,0.08)*((1+VLOOKUP(C41,Tabell4[],3,FALSE))^G41)+E41*IF(B41="Europaväg",0.86,0.92)*((1+VLOOKUP(D41,Tabell5[],3,FALSE))^G41) ->  | J41: Kronoberg | K41: 1.32290115 | L41: 0.01224071021 | M41: 70
G42: 0 | H42: =E42*IF(B42="Europaväg",0.14,0.08)*((1+VLOOKUP(C42,Tabell4[],3,FALSE))^G42)+E42*IF(B42="Europaväg",0.86,0.92)*((1+VLOOKUP(D42,Tabell5[],3,FALSE))^G42) ->  | J42: Kalmar | K42: 1.201816603 | L42: 0.008024821041 | M42: 80
G43: 0 | H43: =E43*IF(B43="Europaväg",0.14,0.08)*((1+VLOOKUP(C43,Tabell4[],3,FALSE))^G43)+E43*IF(B43="Europaväg",0.86,0.92)*((1+VLOOKUP(D43,Tabell5[],3,FALSE))^G43) ->  | J43: Gotland | K43: 1.051708008 | L43: 0.002194383146 | M43: 90
G44: =IF(F44>0,2025-F44,"0") -> 0 | H44: =E44*IF(B44="Europaväg",0.14,0.08)*((1+VLOOKUP(C44,Tabell4[],3,FALSE))^G44)+E44*IF(B44="Europaväg",0.86,0.92)*((1+VLOOKUP(D44,Tabell5[],3,FALSE))^G44) ->  | J44: Blekinge | K44: 1.256124253 | L44: 0.009963701314 | M44: 100
G45: 0 | H45: =E45*IF(B45="Europaväg",0.14,0.08)*((1+VLOOKUP(C45,Tabell4[],3,FALSE))^G45)+E45*IF(B45="Europaväg",0.86,0.92)*((1+VLOOKUP(D45,Tabell5[],3,FALSE))^G45) ->  | J45: Skåne | K45: 1.370091001 | L45: 0.01378445279 | M45: 120
G46: 0 | H46: =E46*IF(B46="Europaväg",0.14,0.08)*((1+VLOOKUP(C46,Tabell4[],3,FALSE))^G46)+E46*IF(B46="Europaväg",0.86,0.92)*((1+VLOOKUP(D46,Tabell5[],3,FALSE))^G46) ->  | J46: Stor-Göteborg | K46: 1.278892867 | L46: 0.01075282468 | M46: 141
G47: 0 | H47: =E47*IF(B47="Europaväg",0.14,0.08)*((1+VLOOKUP(C47,Tabell4[],3,FALSE))^G47)+E47*IF(B47="Europaväg",0.86,0.92)*((1+VLOOKUP(D47,Tabell5[],3,FALSE))^G47) ->  | J47: Södra VVÄ | K47: 1.297410809 | L47: 0.01138477947 | M47: 142
G48: 0 | H48: =E48*IF(B48="Europaväg",0.14,0.08)*((1+VLOOKUP(C48,Tabell4[],3,FALSE))^G48)+E48*IF(B48="Europaväg",0.86,0.92)*((1+VLOOKUP(D48,Tabell5[],3,FALSE))^G48) ->  | J48: Östra VVÄ | K48: 1.219492892 | L48: 0.008664938612 | M48: 143
G49: 0 | H49: =E49*IF(B49="Europaväg",0.14,0.08)*((1+VLOOKUP(C49,Tabell4[],3,FALSE))^G49)+E49*IF(B49="Europaväg",0.86,0.92)*((1+VLOOKUP(D49,Tabell5[],3,FALSE))^G49) ->  | J49: Västra och Norra VVÄ | K49: 1.19641645 | L49: 0.007827466877 | M49: 144
G50: 0 | H50: =E50*IF(B50="Europaväg",0.14,0.08)*((1+VLOOKUP(C50,Tabell4[],3,FALSE))^G50)+E50*IF(B50="Europaväg",0.86,0.92)*((1+VLOOKUP(D50,Tabell5[],3,FALSE))^G50) ->  | J50: Längs E18 VVÄ | K50: 1.156323018 | L50: 0.006334988601 | M50: 145
G51: 0 | H51: =E51*IF(B51="Europaväg",0.14,0.08)*((1+VLOOKUP(C51,Tabell4[],3,FALSE))^G51)+E51*IF(B51="Europaväg",0.86,0.92)*((1+VLOOKUP(D51,Tabell5[],3,FALSE))^G51) ->  | J51: Örebro | K51: 1.246490218 | L51: 0.009625674083 | M51: 180
G52: 0 | H52: =E52*IF(B52="Europaväg",0.14,0.08)*((1+VLOOKUP(C52,Tabell4[],3,FALSE))^G52)+E52*IF(B52="Europaväg",0.86,0.92)*((1+VLOOKUP(D52,Tabell5[],3,FALSE))^G52) ->  | J52: Västmanland | K52: 1.282208457 | L52: 0.01086661514 | M52: 190
G53: 0 | H53: =E53*IF(B53="Europaväg",0.14,0.08)*((1+VLOOKUP(C53,Tabell4[],3,FALSE))^G53)+E53*IF(B53="Europaväg",0.86,0.92)*((1+VLOOKUP(D53,Tabell5[],3,FALSE))^G53) ->  | J53: Dalarna | K53: 1.163860964 | L53: 0.006619328767 | M53: 200
G54: 0 | H54: =E54*IF(B54="Europaväg",0.14,0.08)*((1+VLOOKUP(C54,Tabell4[],3,FALSE))^G54)+E54*IF(B54="Europaväg",0.86,0.92)*((1+VLOOKUP(D54,Tabell5[],3,FALSE))^G54) ->  | J54: Gävleborg | K54: 1.145929029 | L54: 0.005939993393 | M54: 210
G55: 0 | H55: =E55*IF(B55="Europaväg",0.14,0.08)*((1+VLOOKUP(C55,Tabell4[],3,FALSE))^G55)+E55*IF(B55="Europaväg",0.86,0.92)*((1+VLOOKUP(D55,Tabell5[],3,FALSE))^G55) ->  | J55: Västernorrlands läns kustkommuner exkl. Kramfors | K55: 1.138898478 | L55: 0.005670868753 | M55: 221
G56: 0 | H56: =E56*IF(B56="Europaväg",0.14,0.08)*((1+VLOOKUP(C56,Tabell4[],3,FALSE))^G56)+E56*IF(B56="Europaväg",0.86,0.92)*((1+VLOOKUP(D56,Tabell5[],3,FALSE))^G56) ->  | J56: Västernorrlands läns kustkommuner inkl. Kramfors | K56: 0.9951802001 | L56: -0.0002100410936 | M56: 222
G57: 0 | H57: =E57*IF(B57="Europaväg",0.14,0.08)*((1+VLOOKUP(C57,Tabell4[],3,FALSE))^G57)+E57*IF(B57="Europaväg",0.86,0.92)*((1+VLOOKUP(D57,Tabell5[],3,FALSE))^G57) ->  | J57: Jämtland | K57: 1.141918644 | L57: 0.005786672763 | M57: 230
G58: 0 | H58: =E58*IF(B58="Europaväg",0.14,0.08)*((1+VLOOKUP(C58,Tabell4[],3,FALSE))^G58)+E58*IF(B58="Europaväg",0.86,0.92)*((1+VLOOKUP(D58,Tabell5[],3,FALSE))^G58) ->  | J58: Västerbottens kust och inland | K58: 1.126251482 | L58: 0.005182725238 | M58: 241
G59: 0 | H59: =E59*IF(B59="Europaväg",0.14,0.08)*((1+VLOOKUP(C59,Tabell4[],3,FALSE))^G59)+E59*IF(B59="Europaväg",0.86,0.92)*((1+VLOOKUP(D59,Tabell5[],3,FALSE))^G59) ->  | J59: Västerbottens fjäll och inland | K59: 0.8559293037 | L59: -0.006740981111 | M59: 242
G60: 0 | H60: =E60*IF(B60="Europaväg",0.14,0.08)*((1+VLOOKUP(C60,Tabell4[],3,FALSE))^G60)+E60*IF(B60="Europaväg",0.86,0.92)*((1+VLOOKUP(D60,Tabell5[],3,FALSE))^G60) ->  | J60: Norrbottens kust och inland | K60: 1.089407561 | L60: 0.003730158342 | M60: 251
G61: 0 | H61: =E61*IF(B61="Europaväg",0.14,0.08)*((1+VLOOKUP(C61,Tabell4[],3,FALSE))^G61)+E61*IF(B61="Europaväg",0.86,0.92)*((1+VLOOKUP(D61,Tabell5[],3,FALSE))^G61) ->  | J61: Norrbottens fjäll och inland | K61: 0.9421873681 | L61: -0.00258583008 | M61: 252
G62: 0 | H62: =E62*IF(B62="Europaväg",0.14,0.08)*((1+VLOOKUP(C62,Tabell4[],3,FALSE))^G62)+E62*IF(B62="Europaväg",0.86,0.92)*((1+VLOOKUP(D62,Tabell5[],3,FALSE))^G62) ->  | J62: Riket | K62: 1.278875003 | L62: 0.01075221084
G63: 0 | H63: =E63*IF(B63="Europaväg",0.14,0.08)*((1+VLOOKUP(C63,Tabell4[],3,FALSE))^G63)+E63*IF(B63="Europaväg",0.86,0.92)*((1+VLOOKUP(D63,Tabell5[],3,FALSE))^G63) -> 
G64: 0 | H64: =E64*IF(B64="Europaväg",0.14,0.08)*((1+VLOOKUP(C64,Tabell4[],3,FALSE))^G64)+E64*IF(B64="Europaväg",0.86,0.92)*((1+VLOOKUP(D64,Tabell5[],3,FALSE))^G64) ->  | J64: Kommun-nr | K64: Kommun-namn | L64: Grupp-nr | M64: Grupp-namn
G65: 0 | H65: =E65*IF(B65="Europaväg",0.14,0.08)*((1+VLOOKUP(C65,Tabell4[],3,FALSE))^G65)+E65*IF(B65="Europaväg",0.86,0.92)*((1+VLOOKUP(D65,Tabell5[],3,FALSE))^G65) ->  | J65: 114 | K65: UPPLANDS VÄSBY | L65: 10 | M65: Stockholm
G66: 0 | H66: =E66*IF(B66="Europaväg",0.14,0.08)*((1+VLOOKUP(C66,Tabell4[],3,FALSE))^G66)+E66*IF(B66="Europaväg",0.86,0.92)*((1+VLOOKUP(D66,Tabell5[],3,FALSE))^G66) ->  | J66: 115 | K66: VALLENTUNA | L66: 10 | M66: Stockholm
G67: 0 | H67: =E67*IF(B67="Europaväg",0.14,0.08)*((1+VLOOKUP(C67,Tabell4[],3,FALSE))^G67)+E67*IF(B67="Europaväg",0.86,0.92)*((1+VLOOKUP(D67,Tabell5[],3,FALSE))^G67) ->  | J67: 117 | K67: ÖSTERÅKER | L67: 10 | M67: Stockholm
G68: 0 | H68: =E68*IF(B68="Europaväg",0.14,0.08)*((1+VLOOKUP(C68,Tabell4[],3,FALSE))^G68)+E68*IF(B68="Europaväg",0.86,0.92)*((1+VLOOKUP(D68,Tabell5[],3,FALSE))^G68) ->  | J68: 120 | K68: VÄRMDÖ | L68: 10 | M68: Stockholm
G69: 0 | H69: =E69*IF(B69="Europaväg",0.14,0.08)*((1+VLOOKUP(C69,Tabell4[],3,FALSE))^G69)+E69*IF(B69="Europaväg",0.86,0.92)*((1+VLOOKUP(D69,Tabell5[],3,FALSE))^G69) ->  | J69: 123 | K69: JÄRFÄLLA | L69: 10 | M69: Stockholm
G70: 0 | H70: =E70*IF(B70="Europaväg",0.14,0.08)*((1+VLOOKUP(C70,Tabell4[],3,FALSE))^G70)+E70*IF(B70="Europaväg",0.86,0.92)*((1+VLOOKUP(D70,Tabell5[],3,FALSE))^G70) ->  | J70: 125 | K70: EKERÖ | L70: 10 | M70: Stockholm
G71: 0 | H71: =E71*IF(B71="Europaväg",0.14,0.08)*((1+VLOOKUP(C71,Tabell4[],3,FALSE))^G71)+E71*IF(B71="Europaväg",0.86,0.92)*((1+VLOOKUP(D71,Tabell5[],3,FALSE))^G71) ->  | J71: 126 | K71: HUDDINGE | L71: 10 | M71: Stockholm
G72: 0 | H72: =E72*IF(B72="Europaväg",0.14,0.08)*((1+VLOOKUP(C72,Tabell4[],3,FALSE))^G72)+E72*IF(B72="Europaväg",0.86,0.92)*((1+VLOOKUP(D72,Tabell5[],3,FALSE))^G72) ->  | J72: 127 | K72: BOTKYRKA | L72: 10 | M72: Stockholm
G73: 0 | H73: =E73*IF(B73="Europaväg",0.14,0.08)*((1+VLOOKUP(C73,Tabell4[],3,FALSE))^G73)+E73*IF(B73="Europaväg",0.86,0.92)*((1+VLOOKUP(D73,Tabell5[],3,FALSE))^G73) ->  | J73: 128 | K73: SALEM | L73: 10 | M73: Stockholm
G74: 0 | H74: =E74*IF(B74="Europaväg",0.14,0.08)*((1+VLOOKUP(C74,Tabell4[],3,FALSE))^G74)+E74*IF(B74="Europaväg",0.86,0.92)*((1+VLOOKUP(D74,Tabell5[],3,FALSE))^G74) ->  | J74: 136 | K74: HANINGE | L74: 10 | M74: Stockholm
G75: 0 | H75: =E75*IF(B75="Europaväg",0.14,0.08)*((1+VLOOKUP(C75,Tabell4[],3,FALSE))^G75)+E75*IF(B75="Europaväg",0.86,0.92)*((1+VLOOKUP(D75,Tabell5[],3,FALSE))^G75) ->  | J75: 138 | K75: TYRESÖ | L75: 10 | M75: Stockholm
J76: 139 | K76: UPPLANDS-BRO | L76: 10 | M76: Stockholm
J77: 140 | K77: NYKVARN | L77: 10 | M77: Stockholm
J78: 160 | K78: TÄBY | L78: 10 | M78: Stockholm
J79: 162 | K79: DANDERYD | L79: 10 | M79: Stockholm
J80: 163 | K80: SOLLENTUNA | L80: 10 | M80: Stockholm
J81: 180 | K81: STOCKHOLM | L81: 10 | M81: Stockholm
J82: 181 | K82: SÖDERTÄLJE | L82: 10 | M82: Stockholm
J83: 182 | K83: NACKA | L83: 10 | M83: Stockholm
J84: 183 | K84: SUNDBYBERG | L84: 10 | M84: Stockholm
J85: 184 | K85: SOLNA | L85: 10 | M85: Stockholm
J86: 186 | K86: LIDINGÖ | L86: 10 | M86: Stockholm
J87: 187 | K87: VAXHOLM | L87: 10 | M87: Stockholm
J88: 188 | K88: NORRTÄLJE | L88: 10 | M88: Stockholm
J89: 191 | K89: SIGTUNA | L89: 10 | M89: Stockholm
J90: 192 | K90: NYNÄSHAMN | L90: 10 | M90: Stockholm
J91: 305 | K91: HÅBO | L91: 30 | M91: Uppsala
J92: 319 | K92: ÄLVKARLEBY | L92: 30 | M92: Uppsala
J93: 330 | K93: KNIVSTA | L93: 30 | M93: Uppsala
J94: 360 | K94: TIERP | L94: 30 | M94: Uppsala
J95: 380 | K95: UPPSALA | L95: 30 | M95: Uppsala
J96: 381 | K96: ENKÖPING | L96: 30 | M96: Uppsala
J97: 382 | K97: ÖSTHAMMAR | L97: 30 | M97: Uppsala
J98: 428 | K98: VINGÅKER | L98: 40 | M98: Södermanland
J99: 461 | K99: GNESTA | L99: 40 | M99: Södermanland
J100: 480 | K100: NYKÖPING | L100: 40 | M100: Södermanland
J101: 481 | K101: OXELÖSUND | L101: 40 | M101: Södermanland
J102: 482 | K102: FLEN | L102: 40 | M102: Södermanland
J103: 483 | K103: KATRINEHOLM | L103: 40 | M103: Södermanland
J104: 484 | K104: ESKILSTUNA | L104: 40 | M104: Södermanland
J105: 486 | K105: STRÄNGNÄS | L105: 40 | M105: Södermanland
J106: 488 | K106: TROSA | L106: 40 | M106: Södermanland
J107: 509 | K107: ÖDESHÖG | L107: 50 | M107: Östergötland
J108: 512 | K108: YDRE | L108: 50 | M108: Östergötland
J109: 513 | K109: KINDA | L109: 50 | M109: Östergötland
J110: 560 | K110: BOXHOLM | L110: 50 | M110: Östergötland
J111: 561 | K111: ÅTVIDABERG | L111: 50 | M111: Östergötland
J112: 562 | K112: FINSPÅNG | L112: 50 | M112: Östergötland
J113: 563 | K113: VALDEMARSVIK | L113: 50 | M113: Östergötland
J114: 580 | K114: LINKÖPING | L114: 50 | M114: Östergötland
J115: 581 | K115: NORRKÖPING | L115: 50 | M115: Östergötland
J116: 582 | K116: SÖDERKÖPING | L116: 50 | M116: Östergötland
J117: 583 | K117: MOTALA | L117: 50 | M117: Östergötland
J118: 584 | K118: VADSTENA | L118: 50 | M118: Östergötland
J119: 586 | K119: MJÖLBY | L119: 50 | M119: Östergötland
J120: 604 | K120: ANEBY | L120: 60 | M120: Jönköping
J121: 617 | K121: GNOSJÖ | L121: 60 | M121: Jönköping
J122: 642 | K122: MULLSJÖ | L122: 60 | M122: Jönköping
J123: 643 | K123: HABO | L123: 60 | M123: Jönköping
J124: 662 | K124: GISLAVED | L124: 60 | M124: Jönköping
J125: 665 | K125: VAGGERYD | L125: 60 | M125: Jönköping
J126: 680 | K126: JÖNKÖPING | L126: 60 | M126: Jönköping
J127: 682 | K127: NÄSSJÖ | L127: 60 | M127: Jönköping
J128: 683 | K128: VÄRNAMO | L128: 60 | M128: Jönköping
J129: 684 | K129: SÄVSJÖ | L129: 60 | M129: Jönköping
J130: 685 | K130: VETLANDA | L130: 60 | M130: Jönköping
J131: 686 | K131: EKSJÖ | L131: 60 | M131: Jönköping
J132: 687 | K132: TRANÅS | L132: 60 | M132: Jönköping
J133: 760 | K133: UPPVIDINGE | L133: 70 | M133: Kronoberg
J134: 761 | K134: LESSEBO | L134: 70 | M134: Kronoberg
J135: 763 | K135: TINGSRYD | L135: 70 | M135: Kronoberg
J136: 764 | K136: ALVESTA | L136: 70 | M136: Kronoberg
J137: 765 | K137: ÄLMHULT | L137: 70 | M137: Kronoberg
J138: 767 | K138: MARKARYD | L138: 70 | M138: Kronoberg
J139: 780 | K139: VÄXJÖ | L139: 70 | M139: Kronoberg
J140: 781 | K140: LJUNGBY | L140: 70 | M140: Kronoberg
J141: 821 | K141: HÖGSBY | L141: 80 | M141: Kalmar
J142: 834 | K142: TORSÅS | L142: 80 | M142: Kalmar
J143: 840 | K143: MÖRBYLÅNGA | L143: 80 | M143: Kalmar
J144: 860 | K144: HULTSFRED | L144: 80 | M144: Kalmar
J145: 861 | K145: MÖNSTERÅS | L145: 80 | M145: Kalmar
J146: 862 | K146: EMMABODA | L146: 80 | M146: Kalmar
J147: 880 | K147: KALMAR | L147: 80 | M147: Kalmar
J148: 881 | K148: NYBRO | L148: 80 | M148: Kalmar
J149: 882 | K149: OSKARSHAMN | L149: 80 | M149: Kalmar
J150: 883 | K150: VÄSTERVIK | L150: 80 | M150: Kalmar
J151: 884 | K151: VIMMERBY | L151: 80 | M151: Kalmar
J152: 885 | K152: BORGHOLM | L152: 80 | M152: Kalmar
J153: 980 | K153: GOTLAND | L153: 90 | M153: Gotland
J154: 1060 | K154: OLOFSTRÖM | L154: 100 | M154: Blekinge
J155: 1080 | K155: KARLSKRONA | L155: 100 | M155: Blekinge
J156: 1081 | K156: RONNEBY | L156: 100 | M156: Blekinge
J157: 1082 | K157: KARLSHAMN | L157: 100 | M157: Blekinge
J158: 1083 | K158: SÖLVESBORG | L158: 100 | M158: Blekinge
J159: 1214 | K159: SVALÖV | L159: 122 | M159: Skåne Nordväst
J160: 1230 | K160: STAFFANSTORP | L160: 121 | M160: Skåne Sydväst
J161: 1231 | K161: BURLÖV | L161: 121 | M161: Skåne Sydväst
J162: 1233 | K162: VELLINGE | L162: 121 | M162: Skåne Sydväst
J163: 1256 | K163: ÖSTRA GÖINGE | L163: 124 | M163: Skåne Nordöst
J164: 1257 | K164: ÖRKELLJUNGA | L164: 122 | M164: Skåne Nordväst
J165: 1260 | K165: BJUV | L165: 122 | M165: Skåne Nordväst
J166: 1261 | K166: KÄVLINGE | L166: 121 | M166: Skåne Sydväst
J167: 1262 | K167: LOMMA | L167: 121 | M167: Skåne Sydväst
J168: 1263 | K168: SVEDALA | L168: 121 | M168: Skåne Sydväst
J169: 1264 | K169: SKURUP | L169: 123 | M169: Skåne Öst
J170: 1265 | K170: SJÖBO | L170: 123 | M170: Skåne Öst
J171: 1266 | K171: HÖRBY | L171: 123 | M171: Skåne Öst
J172: 1267 | K172: HÖÖR | L172: 121 | M172: Skåne Sydväst
J173: 1270 | K173: TOMELILLA | L173: 123 | M173: Skåne Öst
J174: 1272 | K174: BROMÖLLA | L174: 123 | M174: Skåne Öst
J175: 1273 | K175: OSBY | L175: 124 | M175: Skåne Nordöst
J176: 1275 | K176: PERSTORP | L176: 124 | M176: Skåne Nordöst
J177: 1276 | K177: KLIPPAN | L177: 122 | M177: Skåne Nordväst
J178: 1277 | K178: ÅSTORP | L178: 122 | M178: Skåne Nordväst
J179: 1278 | K179: BÅSTAD | L179: 122 | M179: Skåne Nordväst
J180: 1280 | K180: MALMÖ | L180: 121 | M180: Skåne Sydväst
J181: 1281 | K181: LUND | L181: 121 | M181: Skåne Sydväst
J182: 1282 | K182: LANDSKRONA | L182: 122 | M182: Skåne Nordväst
J183: 1283 | K183: HELSINGBORG | L183: 122 | M183: Skåne Nordväst
J184: 1284 | K184: HÖGANÄS | L184: 122 | M184: Skåne Nordväst
J185: 1285 | K185: ESLÖV | L185: 121 | M185: Skåne Sydväst
J186: 1286 | K186: YSTAD | L186: 123 | M186: Skåne Öst
J187: 1287 | K187: TRELLEBORG | L187: 121 | M187: Skåne Sydväst
J188: 1290 | K188: KRISTIANSTAD | L188: 123 | M188: Skåne Öst
J189: 1291 | K189: SIMRISHAMN | L189: 123 | M189: Skåne Öst
J190: 1292 | K190: ÄNGELHOLM | L190: 122 | M190: Skåne Nordväst
J191: 1293 | K191: HÄSSLEHOLM | L191: 124 | M191: Skåne Nordöst
J192: 1315 | K192: HYLTE | L192: 142 | M192: Södra VVÄ
J193: 1380 | K193: HALMSTAD | L193: 142 | M193: Södra VVÄ
J194: 1381 | K194: LAHOLM | L194: 142 | M194: Södra VVÄ
J195: 1382 | K195: FALKENBERG | L195: 142 | M195: Södra VVÄ
J196: 1383 | K196: VARBERG | L196: 141 | M196: Stor-Göteborg
J197: 1384 | K197: KUNGSBACKA | L197: 141 | M197: Stor-Göteborg
J198: 1401 | K198: HÄRRYDA | L198: 141 | M198: Stor-Göteborg
J199: 1402 | K199: PARTILLE | L199: 141 | M199: Stor-Göteborg
J200: 1407 | K200: ÖCKERÖ | L200: 141 | M200: Stor-Göteborg
J201: 1415 | K201: STENUNGSUND | L201: 141 | M201: Stor-Göteborg
... 153 more rows

Sheet Hastighet
D1: Hastigheter före | K1: Konstant i AC ATK-formel | U1: Hastighet efter
D2: -med ATK beror på vägkategori | W2: Medelhastighet km/tim | Z2: Stopp/km
A3: Vägtyp | B3: Skyltad hastighet | C3: ATK före | D3: alt nr | E3: Vpb | F3: Vlb | G3: Vlbs | H3: lb rel | I3: lbs rel | L3: A | S3: Vägtyp | T3: Skyltad hastighet före | U3: Skyltad hastighet efter | W3: Vpb | X3: Vlbu | Y3: Vlbs
A4: GIF | B4: 50 | C4: Nej | D4: 1 | E4: =E28 -> 49.26315789 | F4: =F28 -> 49.26315789 | G4: =G28 -> 49.26315789 | H4: =Tabell1[[#This Row],[Vlb]]/Tabell1[[#This Row],[Vpb]] -> 1 | I4: =Tabell1[[#This Row],[Vlbs]]/Tabell1[[#This Row],[Vpb]] -> 1 | L4: pb | M4: lb | N4: lbs | S4: GIF | T4: 50 | U4: 40 | V4: 1 | W4: =E4+S28 -> 47.43315789 | X4: =F4+T28 -> 47.43315789 | Y4: =G4+U28 -> 47.43315789 | Z4: 0.1
B5: 50 | C5: Ja | D5: 2 | E5: =E4*L6+(1-L6)*($B$4-10) -> 46.05192674 | F5: =F4*M6+(1-M6)*($B$4-10) -> 46.05192674 | G5: =G4*N6+(1-N6)*($B$4-10) -> 46.05192674 | H5: =Tabell1[[#This Row],[Vlb]]/Tabell1[[#This Row],[Vpb]] -> 1 | I5: =Tabell1[[#This Row],[Vlbs]]/Tabell1[[#This Row],[Vpb]] -> 1 | K5: 40 | L5: =+L6 -> 0.653333 | M5: =+M6 -> 0.653333 | N5: =+N6 -> 0.653333 | T5: 50 | U5: 40ATK | V5: 2 | W5: =D75 -> 41.38965735 | X5: =E75 -> 41.38965735 | Y5: =F75 -> 41.38965735 | Z5: 0.1
B6: 70 | C6: Nej | D6: 3 | E6: =E25 -> 68.94202899 | F6: =F25 -> 68.46715328 | G6: =G25 -> 67.98529412 | H6: =Tabell1[[#This Row],[Vlb]]/Tabell1[[#This Row],[Vpb]] -> 0.9931119564 | I6: =Tabell1[[#This Row],[Vlbs]]/Tabell1[[#This Row],[Vpb]] -> 0.9861226181 | K6: 50 | L6: 0.653333 | M6: 0.653333 | N6: 0.653333 | T6: 50ATK | U6: 40ATK | V6: 3 | W6: =D72 -> 39.6061707 | X6: =E72 -> 39.6061707 | Y6: =F72 -> 39.6061707 | Z6: 0.05
B7: 70 | C7: Ja | D7: 4 | E7: =E6*L8+(1-L8)*($B$6-10) -> 65.97327536 | F7: =F6*M8+(1-M8)*($B$6-10) -> 66.00321168 | G7: 65.66157353 | H7: =Tabell1[[#This Row],[Vlb]]/Tabell1[[#This Row],[Vpb]] -> 1.000453764 | I7: =Tabell1[[#This Row],[Vlbs]]/Tabell1[[#This Row],[Vpb]] -> 0.9952753318 | K7: 60 | L7: 0.626 | M7: 0.634 | N7: 0.634 | T7: 70 | U7: 60 | V7: 4 | W7: =E6+S29 -> 66.37702899 | X7: =F6+T29 -> 66.60215328 | Y7: =G6+U29 -> 66.57029412 | Z7: 0.05
A8: 2kf | B8: 70 | C8: Nej | D8: 5 | E8: =M29 -> 74.24915825 | F8: =N29 -> 73.24914676 | G8: =O29 -> 71.98611111 | H8: =Tabell1[[#This Row],[Vlb]]/Tabell1[[#This Row],[Vpb]] -> 0.9865316791 | I8: =Tabell1[[#This Row],[Vlbs]]/Tabell1[[#This Row],[Vpb]] -> 0.9695209051 | K8: 70 | L8: 0.668 | M8: 0.709 | N8: 0.709 | T8: 70 | U8: 60ATK | V8: 5 | W8: =D82 -> 60.25202014 | X8: =E82 -> 60.52576518 | Y8: 60.50556647 | Z8: 0.05
B9: 70 | C9: Ja | D9: 6 | E9: =E8*L8+(1-L8)*($B$8-10) -> 69.51843771 | F9: =F8*M8+(1-M8)*($B$8-10) -> 69.39364505 | G9: =G8*N8+(1-N8)*($B$8-10) -> 68.49815278 | H9: =Tabell1[[#This Row],[Vlb]]/Tabell1[[#This Row],[Vpb]] -> 0.9982048984 | I9: =Tabell1[[#This Row],[Vlbs]]/Tabell1[[#This Row],[Vpb]] -> 0.9853235348 | K9: 80 | L9: 0.677 | M9: 0.722 | N9: 0.761 | T9: 70ATK | U9: 60ATK | V9: 6 | W9: =AVERAGE(D78:D79) -> 58.8708571 | X9: =AVERAGE(E78:E79) -> 59.47313673 | Y9: =AVERAGE(F78:F79) -> 59.5382523 | Z9: 0.05
B10: 80 | C10: Nej | E10: =M27 -> 83.24924925 | F10: =N27 -> 81.24923077 | G10: =O27 -> 78.98734177 | H10: =Tabell1[[#This Row],[Vlb]]/Tabell1[[#This Row],[Vpb]] -> 0.9759755373 | I10: =Tabell1[[#This Row],[Vlbs]]/Tabell1[[#This Row],[Vpb]] -> 0.9488054545 | K10: 90 | L10: 0.641957 | M10: 0.873 | N10: 0.896 | S10: 2kf | T10: 70 | U10: 60 | V10: 7 | W10: =E8+S29 -> 71.68415825 | X10: =F8+T29 -> 71.38414676 | Y10: =G8+U29 -> 70.57111111 | Z10: 0.02
B11: 80 | C11: Ja | E11: =E10*L9+(1-L9)*($B$10-10) -> 78.96974174 | F11: =F10*M9+(1-M9)*($B$10-10) -> 78.12194462 | G11: =G10*N9+(1-N9)*($B$10-10) -> 76.83936709 | H11: =Tabell1[[#This Row],[Vlb]]/Tabell1[[#This Row],[Vpb]] -> 0.9892642789 | I11: =Tabell1[[#This Row],[Vlbs]]/Tabell1[[#This Row],[Vpb]] -> 0.9730228996 | K11: 100 | L11: 0.75 | M11: 0.899 | N11: 0.905 | T11: 70 | U11: 60ATK | V11: 8 | W11: =D104 -> 63.57428306 | X11: =E104 -> 63.55754904 | Y11: =F104 -> 63.04208444 | Z11: 0.02
B12: 90 | C12: Nej | D12: 7 | E12: =M25 -> 89.24929972 | F12: =N25 -> 84.74926254 | G12: =O25 -> 79.9875 | H12: =Tabell1[[#This Row],[Vlb]]/Tabell1[[#This Row],[Vpb]] -> 0.9495790197 | I12: =Tabell1[[#This Row],[Vlbs]]/Tabell1[[#This Row],[Vpb]] -> 0.8962255194 | K12: 110 | L12: =+L11 -> 0.75 | M12: =+M11 -> 0.899 | N12: =+N11 -> 0.905 | T12: 70ATK | U12: 60ATK | V12: 9 | W12: =D107 -> 58.93314627 | X12: =E107 -> 59.75708727 | Y12: 60.04238727 | Z12: 0.02
B13: 90 | C13: Ja | D13: 8 | E13: =E12*L10+(1-L10)*($B$12-10) -> 85.9376527 | F13: =F12*M10+(1-M10)*($B$12-10) -> 84.14610619 | G13: =G12*N10+(1-N10)*($B$12-10) -> 79.9888 | H13: =Tabell1[[#This Row],[Vlb]]/Tabell1[[#This Row],[Vpb]] -> 0.9791529504 | I13: =Tabell1[[#This Row],[Vlbs]]/Tabell1[[#This Row],[Vpb]] -> 0.9307771098 | T13: 90 | U13: 80 | V13: 10 | W13: =E12+S30 -> 85.94929972 | X13: =F12+T30 -> 82.84926254 | Y13: =G12+U30 -> 78.9875 | Z13: 0.02
B14: 100 | C14: Nej | D14: 9 | E14: =M23 -> 95.4973822 | F14: =N23 -> 89.4972067 | G14: =O23 -> 80.98765432 | H14: =Tabell1[[#This Row],[Vlb]]/Tabell1[[#This Row],[Vpb]] -> 0.9371692149 | I14: =Tabell1[[#This Row],[Vlbs]]/Tabell1[[#This Row],[Vpb]] -> 0.8480615118 | K14: Vatk = A*V+(1-A)*(HG-10) om V>=HG-10, för lb 72 om HG>=90 | T14: 90 | U14: 80ATK | V14: 11 | W14: =D91 -> 80.79767591 | X14: =E91 -> 79.27716755 | Y14: =F91 -> 76.8394875 | Z14: 0.02
B15: 100 | C15: Ja | D15: 10 | E15: =E14*L11+(1-L11)*($B$14-10) -> 94.12303665 | F15: =F14*M11+(1-M11)*($B$14-10) -> 89.54798883 | G15: =G14*N11+(1-N11)*($B$14-10) -> 81.84382716 | H15: =Tabell1[[#This Row],[Vlb]]/Tabell1[[#This Row],[Vpb]] -> 0.9513929003 | I15: =Tabell1[[#This Row],[Vlbs]]/Tabell1[[#This Row],[Vpb]] -> 0.8695408698 | K15: Vatk = V om V<HG-10, för lb 72 om HG>=90 | T15: 90ATK | U15: 80ATK | V15: 12 | W15: =AVERAGE(D87:D88) -> 79.25753934 | X15: =AVERAGE(E87:E88) -> 79.80825419 | Y15: =AVERAGE(F87:F88) -> 77.82734401 | Z15: 0.02
A16: MLV | B16: 90 | C16: Nej | D16: 11 | E16: =R46 -> 87.6278527 | F16: =S46 -> 82.59462062 | G16: 78.41376762 | H16: =Tabell1[[#This Row],[Vlb]]/Tabell1[[#This Row],[Vpb]] -> 0.9425612757 | I16: =Tabell1[[#This Row],[Vlbs]]/Tabell1[[#This Row],[Vpb]] -> 0.8948498133 | T16: 100 | U16: 80 | V16: 13 | W16: =E14+S31 -> 90.2473822 | X16: =F14+T31 -> 85.7472067 | Y16: =G14+U31 -> 79.73765432 | Z16: 0.02
B17: 90 | C17: Ja | D17: 12 | E17: =E16*L10+(1-L10)*($B$16-10) -> 84.89675343 | F17: =F16*M10+(1-M10)*($B$16-10) -> 82.2651038 | G17: =G16*N10+(1-N10)*($B$16-10) -> 78.57873579 | H17: =Tabell1[[#This Row],[Vlb]]/Tabell1[[#This Row],[Vpb]] -> 0.9690017636 | I17: =Tabell1[[#This Row],[Vlbs]]/Tabell1[[#This Row],[Vpb]] -> 0.9255799852 | T17: 100ATK | U17: 80ATK | V17: 14 | W17: =W16*L9+(1-L9)*($K$9-10) -> 83.70747775 | X17: =X16*M9+(1-M9)*($K$9-10) -> 81.36948324 | Y17: =Y16*N9+(1-N9)*($K$9-10) -> 77.41035494 | Z17: 0.02
B18: 100 | C18: Nej | E18: =R56 -> 95.11646597 | F18: =S56 -> 87.80525178 | G18: =T56 -> 81.89759956 | H18: =Tabell1[[#This Row],[Vlb]]/Tabell1[[#This Row],[Vpb]] -> 0.923134085 | I18: =Tabell1[[#This Row],[Vlbs]]/Tabell1[[#This Row],[Vpb]] -> 0.8610244159 | S18: MLV | T18: 90 | U18: 100 | V18: 15 | W18: =E16+S34 -> 90.0278527 | X18: =F16+T34 -> 84.49462062 | Y18: =G16+U34 -> 78.41376762 | Z18: 0.02
B19: 110 | C19: Nej | D19: 13 | E19: =D64 -> 104.5 | F19: =E64 -> 92 | G19: =F64 -> 83.5 | H19: =Tabell1[[#This Row],[Vlb]]/Tabell1[[#This Row],[Vpb]] -> 0.8803827751 | I19: =Tabell1[[#This Row],[Vlbs]]/Tabell1[[#This Row],[Vpb]] -> 0.7990430622 | T19: 90ATK | U19: 100ATK | V19: 16 | W19: =W18*L11+(1-L11)*($K$11-10) -> 90.02088952 | X19: =X18*M11+(1-M11)*($K$11-10) -> 85.05066394 | Y19: =Y18*N11+(1-N11)*($K$11-10) -> 79.5144597 | Z19: 0.02
A20: MV | B20: 110 | C20: Nej | D20: 14 | E20: =J67 -> 109 | F20: =K67 -> 93 | G20: 84.5 | H20: =Tabell1[[#This Row],[Vlb]]/Tabell1[[#This Row],[Vpb]] -> 0.8532110092 | I20: =Tabell1[[#This Row],[Vlbs]]/Tabell1[[#This Row],[Vpb]] -> 0.7752293578 | J20: 2kf land | M20: 2 kf land schablon | T20: 110 | U20: 100 | V20: 17 | W20: =E19+S32 -> 102.2 | X20: 92 | Y20: 83 | Z20: 0.02
I21: BP1 150 Normal | J21: Pb | K21: Lb | L21: Lbs | M21: Pb | N21: Lb | O21: Lbs | S21: MV | T21: 110 | U21: 120 | V21: 18 | W21: 112.7 | X21: 96.2 | Y21: 84.5 | Z21: 0.02
B22: 2kf GIF | E22: 2kf GIF schablon | I22: 2 N 100 SK1 | J22: 96 | K22: 90 | L22: 82 | M22: =+M23/$M$23 -> 1 | N22: =+N23/$M$23 -> 0.9371692149 | O22: =+O23/$M$23 -> 0.8480615118
B23: Pb | C23: Lb | D23: Lbs | E23: Pb | F23: Lb | G23: Lbs | I23: 2N 100 SK2 | J23: 95 | K23: 89 | L23: 80 | M23: =1/(0.5/J22+0.5/J23) -> 95.4973822 | N23: =1/(0.5/K22+0.5/K23) -> 89.4972067 | O23: =1/(0.5/L22+0.5/L23) -> 80.98765432
B24: 71 | C24: 70 | D24: 69 | E24: =+E25/$E$25 -> 1 | F24: =+F25/$E$25 -> 0.9931119564 | G24: =+G25/$E$25 -> 0.9861226181 | I24: 2N 90 SK1 | J24: 89.5 | K24: 85 | L24: 81 | M24: =+M25/$M$25 -> 1 | N24: =+N25/$M$25 -> 0.9495790197 | O24: =+O25/$M$25 -> 0.8962255194
B25: 67 | C25: 67 | D25: 67 | E25: =1/(0.5/B24+0.5/B25) -> 68.94202899 | F25: =1/(0.5/C24+0.5/C25) -> 68.46715328 | G25: =1/(0.5/D24+0.5/D25) -> 67.98529412 | I25: 2N 90 SK2 | J25: 89 | K25: 84.5 | L25: 79 | M25: =1/(0.5/J24+0.5/J25) -> 89.24929972 | N25: =1/(0.5/K24+0.5/K25) -> 84.74926254 | O25: =1/(0.5/L24+0.5/L25) -> 79.9875
B26: 52 | C26: 52 | D26: 52 | I26: 2N 80 SK1 | J26: 83.5 | K26: 81.5 | L26: 80 | M26: =+M27/$M$27 -> 1 | N26: =+N27/$M$27 -> 0.9759755373 | O26: =+O27/$M$27 -> 0.9488054545 | AA26: Referens:
B27: 48 | C27: 48 | D27: 48 | E27: =+E28/E28 -> 1 | F27: =+F28/F28 -> 1 | G27: =+G28/G28 -> 1 | I27: 2N 80 SK2 | J27: 83 | K27: 81 | L27: 78 | M27: =1/(0.5/J26+0.5/J27) -> 83.24924925 | N27: =1/(0.5/K26+0.5/K27) -> 81.24923077 | O27: =1/(0.5/L26+0.5/L27) -> 78.98734177 | S27: pb | T27: lb | U27: lbs | AA27: VTI rapport 938 - Hastighetsflödessamband för svenska vägtyper
B28: 48 | C28: 48 | D28: 48 | E28: =1/(1/3/B27+1/3/B28+1/3/B26) -> 49.26315789 | F28: =1/(1/3/C27+1/3/C28+1/3/C26) -> 49.26315789 | G28: =1/(1/3/D27+1/3/D28+1/3/D26) -> 49.26315789 | I28: 2N 70 SK1 | J28: =D34 -> 74.5 | K28: =E34 -> 73.5 | L28: =F34 -> 73 | M28: =+M29/$M$29 -> 1 | N28: =+N29/$M$29 -> 0.9865316791 | O28: =+O29/$M$29 -> 0.9695209051 | Q28: 1 | R28: 50-40 | S28: -1.83 | T28: -1.83 | U28: -1.83 | AA28: Effektsamband för transportsystem
I29: 2N 70 SK2 | J29: =J34 -> 74 | K29: =K34 -> 73 | L29: =L34 -> 71 | M29: =1/(0.5/J28+0.5/J29) -> 74.24915825 | N29: =1/(0.5/K28+0.5/K29) -> 73.24914676 | O29: =1/(0.5/L28+0.5/L29) -> 71.98611111 | Q29: 2 | R29: 70-60 | S29: =(0.5*S28)+(0.5*S30) -> -2.565 | T29: =(0.5*T28)+(0.5*T30) -> -1.865 | U29: =(0.5*U28)+(0.5*U30) -> -1.415
B30: 70km/h, tvåfältsväg, 8-10m, siktklass 1 | H30: 70km/h, tvåfältsväg, 8-10m, siktklass 2 | Q30: 3 | R30: 90-80 | S30: -3.3 | T30: -1.9 | U30: -1
C31: Flöde | D31: Reshastighet km/h | I31: Flöde | J31: Reshastighet km/h | Q31: 4 | R31: 100-80 | S31: =(0.5*-5.4)+(0.5*-5.1) -> -5.25 | T31: =(0.5*-3.4)+(0.5*-4.1) -> -3.75 | U31: =(0.5*-2.6)+(0.5*0.1) -> -1.25
B32: Normal | C32: f/h | D32: Pb | E32: Lb | F32: Lbs | H32: Normal | I32: f/h | J32: Pb | K32: Lb | L32: Lbs | Q32: 5 | R32: 110-100 | S32: -2.3 | T32: 0 | U32: -0.5
B33: Brytpunkt 0 | C33: 0 | D33: 74.5 | E33: 73.5 | F33: 73 | H33: Brytpunkt 0 | I33: 0 | J33: 74 | K33: 73 | L33: 71 | Q33: 6 | R33: 110-120 | S33: 3.7 | T33: 3.2 | U33: 0
B34: Brytpunkt 1 | C34: 150 | D34: 74.5 | E34: 73.5 | F34: 73 | H34: Brytpunkt 1 | I34: 150 | J34: 74 | K34: 73 | L34: 71 | Q34: 7 | R34: 90-100 | S34: 2.4 | T34: 1.9 | U34: 0
B35: Brytpunkt 2 | C35: 600 | D35: 70.4 | E35: 70 | F35: 69.7 | H35: Brytpunkt 2 | I35: 550 | J35: 69.1 | K35: 68.7 | L35: 67.4
B36: Brytpunkt 3 | C36: 1200 | D36: 66.5 | E36: 66.3 | F36: 66.2 | H36: Brytpunkt 3 | I36: 1100 | J36: 64.2 | K36: 64.1 | L36: 63.4
B37: Brytpunkt 4 | C37: 1800 | D37: 63 | E37: 63 | F37: 63 | H37: Brytpunkt 4 | I37: 1700 | J37: 59.5 | K37: 59.5 | L37: 59.5
B38: Brytpunkt 5 | C38: 2160 | D38: 10 | E38: 10 | F38: 10 | H38: Brytpunkt 5 | I38: 2040 | J38: 10 | K38: 10 | L38: 10
B40: 90km/h, MLV, 2+1 kf, 13-14m, siktklass 1, andel tvåfält 40 % | H40: 90km/h, MLV, 2+1 kf, 13-14m, siktklass 2, andel tvåfält 40 %
C41: Flöde | D41: Reshastighet km/h | I41: Flöde | J41: Reshastighet km/h
C42: f/h | D42: Pb | E42: Lb | F42: Lbs | I42: f/h | J42: Pb | K42: Lb | L42: Lbs
B43: Brytpunkt 0 | C43: 0 | D43: 88.5 | E43: 83 | F43: 79.5 | H43: Brytpunkt 0 | I43: 0 | J43: 88 | K43: 82.5 | L43: 77.5 | O43: MLV 90 | R43: MLV 90 | S43: schablon
B44: Brytpunkt 1 | C44: 240 | D44: 88.5 | E44: 83 | F44: 79.5 | H44: Brytpunkt 1 | I44: 60 | J44: 88 | K44: 82.5 | L44: 77.5 | N44: Villkor | O44: Pb | P44: Lbs | Q44: Lbs | R44: Pb | S44: Lbs | T44: Lbs
B45: Brytpunkt 2 | C45: 750 | D45: 85.7 | E45: 81.5 | F45: 78.8 | H45: Brytpunkt 2 | I45: 500 | J45: 82 | K45: 81 | L45: 76.8 | N45: 40% 150 f/h | O45: =+D43 -> 88.5 | P45: =+E43 -> 83 | Q45: =+F43 -> 79.5 | R45: =+R46/R46 -> 1 | S45: =+S46/R46 -> 0.9425612757 | T45: =+T46/R46 -> 0.8948498133
B46: Brytpunkt 3 | C46: 1500 | D46: 81.5 | E46: 79.3 | F46: 78.1 | H46: Brytpunkt 3 | I46: 1500 | J46: 81 | K46: 78.8 | L46: 76.1 | N46: 20% 150 f/h | O46: =+J44+(J45-J44)*(150-60)/(500-60) -> 86.77272727 | P46: =+K44+(K45-K44)*(150-60)/(500-60) -> 82.19318182 | Q46: =+L44+(L45-L44)*(150-60)/(500-60) -> 77.35681818 | R46: =1/(0.5/O45+0.5/O46) -> 87.6278527 | S46: =1/(0.5/P45+0.5/P46) -> 82.59462062 | T46: =1/(0.5/Q45+0.5/Q46) -> 78.41376762
B47: Brytpunkt 4 | C47: 1550 | D47: 78.1 | E47: 78.1 | F47: 78.1 | H47: Brytpunkt 4 | I47: 1550 | J47: 76.1 | K47: 76.1 | L47: 76.1
B48: Brytpunkt 5 | C48: 1860 | D48: 10 | E48: 10 | F48: 10 | H48: Brytpunkt 5 | I48: 1860 | J48: 10 | K48: 10 | L48: 10
B50: 100km/h, MLV, 2+1 kf, 13-14m, siktklass 1, andel tvåfält 40 % | H50: 100km/h, MLV, 2+1 kf, 13-14m, siktklass 1, andel tvåfält 20 %
C51: Flöde | D51: Reshastighet km/h | I51: Flöde | J51: Reshastighet km/h
C52: f/h | D52: Pb | E52: Lb | F52: Lbs | I52: f/h | J52: Pb | K52: Lb | L52: Lbs
B53: Brytpunkt 0 | C53: 0 | D53: 96 | E53: 88 | F53: 82 | H53: Brytpunkt 0 | I53: 0 | J53: 96 | K53: 88 | L53: 82 | O53: MLV 100 | R53: MLV 100 | S53: schablon
B54: Brytpunkt 1 | C54: 240 | D54: 96 | E54: 88 | F54: 82 | H54: Brytpunkt 1 | I54: 60 | J54: 96 | K54: 88 | L54: 82 | N54: Villkor | O54: Pb | P54: Lbs | Q54: Lbs | R54: Pb | S54: Lbs | T54: Lbs
B55: Brytpunkt 2 | C55: 750 | D55: 92.63964377 | E55: 86.1 | F55: 81 | H55: Brytpunkt 2 | I55: 500 | J55: 87.4397844 | K55: 86.1 | L55: 81 | N55: 40% 150 f/h | O55: =+D53 -> 96 | P55: =+E53 -> 88 | Q55: =+F53 -> 82 | R55: =+R56/R56 -> 1 | S55: =+S56/R56 -> 0.923134085 | T55: =+T56/R56 -> 0.8610244159
B56: Brytpunkt 3 | C56: 1500 | D56: 87.54970898 | E56: 83.5 | F56: 80 | H56: Brytpunkt 3 | I56: 1500 | J56: 81.41197654 | K56: 80.6 | L56: 79 | N56: 20% 150 f/h | O56: =+J54+(J55-J54)*(150-60)/(500-60) -> 94.24904681 | P56: =+K54+(K55-K54)*(150-60)/(500-60) -> 87.61136364 | Q56: =+L54+(L55-L54)*(150-60)/(500-60) -> 81.79545455 | R56: =1/(0.5/O55+0.5/O56) -> 95.11646597 | S56: =1/(0.5/P55+0.5/P56) -> 87.80525178 | T56: =1/(0.5/Q55+0.5/Q56) -> 81.89759956
B57: Brytpunkt 4 | C57: 1550 | D57: 79 | E57: 79 | F57: 79 | H57: Brytpunkt 4 | I57: 1550 | J57: 79 | K57: 79 | L57: 79
B58: Brytpunkt 5 | C58: 1860 | D58: 10 | E58: 10 | F58: 10 | H58: Brytpunkt 5 | I58: 1860 | J58: 10 | K58: 10 | L58: 10
B61: 110km/h, MML, 2+1 kf, 13-14m, siktklass 1, andel tvåfält 40%
C62: Flöde | D62: Reshastighet km/h
C63: f/h | D63: Pb | E63: Lb | F63: Lbs | I63: MV110 (3kf S1 Flöde 0-1872f/h)
B64: Brytpunkt 0 | C64: 0 | D64: 104.5 | E64: 92 | F64: 83.5 | I64: Flöde | J64: Reshastighet km/h
B65: Brytpunkt 1 | C65: 240 | D65: 104.5 | E65: 92 | F65: 83.5 | I65: f/h | J65: Pb | K65: Lb | L65: Lbs
B66: Brytpunkt 2 | C66: 750 | D66: 100.4 | E66: 90 | F66: 82.5 | J66: =+J67/$J$67 -> 1 | K66: =+K67/$J$67 -> 0.8532110092 | L66: =+L67/$J$67 -> 0.7752293578
B67: Brytpunkt 3 | C67: 1500 | D67: 93.4 | E67: 86.9 | F67: 81.5 | H67: Brytpunkt 1 | I67: 1872 | J67: 109 | K67: 93 | L67: 84.5
B68: Brytpunkt 4 | C68: 1550 | D68: 79 | E68: 79 | F68: 79
B69: Brytpunkt 5 | C69: 1860 | D69: 10 | E69: 10 | F69: 10
C70: Medelhastighet
B71: GIF50ATK | C71: ERL | D71: =T75*L6+(1-L6)*40 -> 46.53333 | E71: =U75*M6+(1-M6)*40 -> 46.53333 | F71: =V75*N6+(1-N6)*40 -> 46.53333 | T71: Medelhastighet
B72: - 40ATK | D72: =(D71+S28)*L5+(1-L5)*($K5-10) -> 39.6061707 | E72: =(E71+T28)*M5+(1-M5)*($K5-10) -> 39.6061707 | F72: =(F71+U28)*N5+(1-N5)*($K5-10) -> 39.6061707 | M72: pb | N72: lb | O72: lbs | P72: lb rel | Q72: lbs rel | R72: "Före" | T72: Vpb | U72: Vlbu | V72: Vlbs
B73: GIF 50 | D73: =E4 -> 49.26315789 | E73: =F4 -> 49.26315789 | F73: =G4 -> 49.26315789 | G73: 0.1 | H73: 50 | I73: 50 | J73: 50 | M73: 0.86 | N73: 0.06 | O73: 0.08 | P73: =F27 -> 1 | Q73: =G27 -> 1 | R73: GIF50ATK | S73: E | T73: =($M73+$N73/$P73+$O73/$Q73)*(50) -> 50 | U73: =P73*$T73 -> 50 | V73: =Q73*$T73 -> 50
B74: -40 | D74: =D73+S28 -> 47.43315789 | E74: =E73+T28 -> 47.43315789 | F74: =F73+U28 -> 47.43315789 | G74: 0.1 | H74: 47 | I74: 47 | J74: 47 | M74: 0.92 | N74: 0.04 | O74: 0.04 | P74: =P73 -> 1 | Q74: =Q73 -> 1 | S74: R | T74: =($M74+$N74/$P74+$O74/$Q74)*(50) -> 50 | U74: 50 | V74: 50
B75: -40ATK | D75: =D74*L5+(1-L5)*($K5-10) -> 41.38965735 | E75: =E74*M5+(1-M5)*($K5-10) -> 41.38965735 | F75: =F74*N5+(1-N5)*($K5-10) -> 41.38965735 | M75: 0.92 | N75: 0.04 | O75: 0.04 | P75: =P74 -> 1 | Q75: =Q74 -> 1 | S75: L | T75: =($M75+$N75/$P75+$O75/$Q75)*(50) -> 50 | U75: 50 | V75: 50
B76: GIF70ATK | C76: E | D76: =T76*L8+(1-L8)*($K8-10) -> 66.75210219 | E76: =U76*M8+(1-M8)*($K8-10) -> 66.82414689 | F76: =V76*N8+(1-N8)*($K8-10) -> 66.47673115 | M76: 0.86 | N76: 0.06 | O76: 0.08 | P76: =F24 -> 0.9931119564 | Q76: =G24 -> 0.9861226181 | R76: 70ATK | S76: E | T76: =($M76+$N76/$P76+$O76/$Q76)*(70) -> 70.10793741 | U76: 69.62503088 | V76: 69.13502278
C77: RL | D77: =T77*L8+(1-L8)*($K8-10) -> 66.71929428 | E77: =U77*M8+(1-M8)*($K8-10) -> 66.78956518 | F77: =V77*N8+(1-N8)*($K8-10) -> 66.44239282 | M77: 0.92 | N77: 0.04 | O77: 0.04 | P77: =P76 -> 0.9931119564 | Q77: =Q76 -> 0.9861226181 | S77: R | T77: =($M77+$N77/$P77+$O77/$Q77)*(70) -> 70.05882378 | U77: 69.57625554 | V77: 69.08659072
B78: -60ATK | C78: E | D78: =(D76+S29)*L7+(1-L7)*($K7-10) -> 58.88112597 | E78: =(E76+T29)*M7+(1-M7)*($K7-10) -> 59.48409913 | F78: =(F76+U29)*N7+(1-N7)*($K7-10) -> 59.54913755 | M78: 0.92 | N78: 0.04 | O78: 0.04 | P78: =P77 -> 0.9931119564 | Q78: =Q77 -> 0.9861226181 | S78: L | T78: =($M78+$N78/$P78+$O78/$Q78)*(70) -> 70.05882378 | U78: 69.57625554 | V78: 69.08659072
C79: RL | D79: =(D77+S29)*L7+(1-L7)*($K7-10) -> 58.86058822 | E79: =(E77+T29)*M7+(1-M7)*($K7-10) -> 59.46217432 | F79: =(F77+U29)*N7+(1-N7)*($K7-10) -> 59.52736705 | M79: 0.86 | N79: 0.06 | O79: 0.08 | P79: =N24 -> 0.9495790197 | Q79: =O24 -> 0.8962255194 | R79: GIF 90ATK | S79: E | T79: =($M79+$N79/$P79+$O79/$Q79)*(90) -> 91.12042277 | U79: 86.52604173 | V79: 81.66444822
B80: GIF 70 | D80: =E6 -> 68.94202899 | E80: =F6 -> 68.46715328 | F80: =G6 -> 67.98529412 | G80: 0.05 | H80: 70 | I80: 70 | J80: 69 | M80: 0.92 | N80: 0.04 | O80: 0.04 | P80: =P79 -> 0.9495790197 | Q80: =Q79 -> 0.8962255194 | S80: RL | T80: =($M80+$N80/$P80+$O80/$Q80)*(90) -> 90.6079998 | U80: 86.03945563 | V80: 81.20520169
B81: -60 | D81: =D80+S29 -> 66.37702899 | E81: =E80+T29 -> 66.60215328 | F81: =F80+U29 -> 66.57029412 | G81: 0.05 | H81: 66 | I81: 66 | J81: 65 | M81: 0.86 | N81: 0.06 | O81: 0.08 | P81: =N22 -> 0.9371692149 | Q81: =O22 -> 0.8480615118 | R81: 100ATK | S81: E | T81: =($M81+$N81/$P81+$O81/$Q81)*(100) -> 101.835537 | U81: 95.43713022 | V81: 86.36279942
B82: -60ATK | D82: =D81*L7+(1-L7)*($K7-10) -> 60.25202014 | E82: =E81*M7+(1-M7)*($K7-10) -> 60.52576518 | F82: =F81*N7+(1-N7)*($K7-10) -> 60.50556647 | M82: 0.92 | N82: 0.04 | O82: 0.04 | P82: =P81 -> 0.9371692149 | Q82: =Q81 -> 0.8480615118 | S82: RL | T82: =($M82+$N82/$P82+$O82/$Q82)*(100) -> 100.9848116 | U82: 94.63985664 | V82: 85.64133203
B83: 2kf 80 | D83: =M27 -> 83.24924925 | E83: =N27 -> 81.24923077 | F83: =O27 -> 78.98734177 | G83: 0.02 | H83: 87 | I83: 84 | J83: 82 | M83: 0.86 | N83: 0.06 | O83: 0.08 | P83: =(E34+K34)/($D$34+$J$34) -> 0.9865319865 | Q83: =(F34+L34)/($D$34+$J$34) -> 0.9696969697 | R83: 70ATK | S83: E | T83: =($M83+$N83/$P83+$O83/$Q83)*(70) -> 70.23233788 | U83: 70.23233788 | V83: 70.23233788
B84: -ATK | D84: =D83*L9+(1-L9)*($K9-10) -> 78.96974174 | E84: =E83*M9+(1-M9)*($K9-10) -> 78.12194462 | F84: =F83*N9+(1-N9)*($K9-10) -> 76.83936709 | M84: 0.92 | N84: 0.04 | O84: 0.04 | P84: =P83 -> 0.9865319865 | Q84: =Q83 -> 0.9696969697 | S84: R | T84: 70.12572526 | U84: 70.12572526 | V84: 70.12572526
B85: 2kf90ATK | C85: E | D85: =T79*L10+(1-L10)*($K10-10) -> 87.13883324 | E85: =U79*M10+(1-M10)*($K10-10) -> 85.69723443 | F85: =V79*N10+(1-N10)*($K10-10) -> 81.49134561 | M85: 0.92 | N85: 0.04 | O85: 0.04 | P85: =P84 -> 0.9865319865 | Q85: =Q84 -> 0.9696969697 | S85: L | T85: 70.12572526 | U85: 70.12572526 | V85: 70.12572526
C86: RL | D86: =T80*L10+(1-L10)*($K10-10) -> 86.80987973 | E86: =U80*M10+(1-M10)*($K10-10) -> 85.27244477 | F86: =V80*N10+(1-N10)*($K10-10) -> 81.07986071
B87: - 80ATK | C87: E | D87: =(D85+S30)*L9+(1-L9)*($K9-10) -> 79.3688901 | E87: =(E85+T30)*M9+(1-M9)*($K9-10) -> 79.96160326 | F87: =(F85+U30)*N9+(1-N9)*($K9-10) -> 77.98391401
C88: RL | D88: =(D86+S30)*L9+(1-L9)*($K9-10) -> 79.14618858 | E88: =(E86+T30)*M9+(1-M9)*($K9-10) -> 79.65490512 | F88: =(F86+U30)*N9+(1-N9)*($K9-10) -> 77.670774
B89: 2kf 90 | D89: =M25 -> 89.24929972 | E89: =N25 -> 84.74926254 | F89: =O25 -> 79.9875 | G89: 0.02 | H89: 93 | I89: 87 | J89: 82
B90: -80 | D90: =D89+S30 -> 85.94929972 | E90: =E89+T30 -> 82.84926254 | F90: =F89+U30 -> 78.9875 | G90: 0.02 | H90: 89 | I90: 84 | J90: 81
B91: -80ATK | D91: =D90*L9+(1-L9)*($K9-10) -> 80.79767591 | E91: =E90*M9+(1-M9)*($K9-10) -> 79.27716755 | F91: =F90*N9+(1-N9)*($K9-10) -> 76.8394875
B92: 2kf100ATK | C92: E | D92: =T81*L11+(1-L11)*($K11-10) -> 98.87665272 | E92: =U81*M11+(1-M11)*($K11-10) -> 94.88798007 | F92: =V81*N11+(1-N11)*($K11-10) -> 86.70833348
C93: RL | D93: =T82*L11+(1-L11)*($K11-10) -> 98.23860873 | E93: =U82*M11+(1-M11)*($K11-10) -> 94.17123112 | F93: =V82*N11+(1-N11)*($K11-10) -> 86.05540548
B94: - 80ATK | C94: E | D94: =(D92+S31)*L9+(1-L9)*($K9-10) -> 85.99524389 | E94: =(E92+T31)*M9+(1-M9)*($K9-10) -> 85.26162161 | F94: =(F92+U31)*N9+(1-N9)*($K9-10) -> 81.76379178
C95: RL | D95: =(D93+S31)*L9+(1-L9)*($K9-10) -> 85.56328811 | E95: =(E93+T31)*M9+(1-M9)*($K9-10) -> 84.74412887 | F95: =(F93+U31)*N9+(1-N9)*($K9-10) -> 81.26691357
B96: 2kf100 | D96: =M23 -> 95.4973822 | E96: =N23 -> 89.4972067 | F96: =O23 -> 80.98765432 | G96: 0.02 | H96: 100 | I96: 91 | J96: 83
B97: - 80 | D97: =D96+S31 -> 90.2473822 | E97: =E96+T31 -> 85.7472067 | F97: =F96+U31 -> 79.73765432 | G97: 0.02 | H97: 95 | I97: 88 | J97: 81
B98: - 80ATK | D98: =D97*L9+(1-L9)*($K9-10) -> 83.70747775 | E98: =E97*M9+(1-M9)*($K9-10) -> 81.36948324 | F98: =F97*N9+(1-N9)*($K9-10) -> 77.41035494
B99: MLV 100 | D99: =R56 -> 95.11646597 | E99: =S56 -> 87.80525178 | F99: =T56 -> 81.89759956 | G99: 0.02 | H99: 96 | I99: 88 | J99: 82
B100: MV110 | D100: =J67 -> 109 | E100: =K67 -> 93 | F100: =L67 -> 84.5 | G100: 0.02 | H100: 111 | I100: 93 | J100: 87
B102: 2kf70 | D102: =E8 -> 74.24915825 | E102: =F8 -> 73.24914676 | F102: 71.98611111
B103: -60 | D103: =D102+S29 -> 71.68415825 | E103: =E102+T29 -> 71.38414676 | F103: 70.57111111
B104: -60ATK | D104: =D103*L7+(1-L7)*($K7-10) -> 63.57428306 | E104: =E103*M7+(1-M7)*($K7-10) -> 63.55754904 | F104: =F103*N7+(1-N7)*($K7-10) -> 63.04208444
B105: 2kf70ATK | C105: E | D105: =T83*L8+(1-L8)*($K8-10) -> 66.83520171 | E105: =U83*M8+(1-M8)*($K8-10) -> 67.25472756 | F105: 67.25472756
C106: RL | D106: =T84*L8+(1-L8)*($K8-10) -> 66.76398447 | E106: =U84*M8+(1-M8)*($K8-10) -> 67.17913921 | F106: 67.17913921
B107: -60ATK | D107: =(D105+S29)*L7+(1-L7)*($K7-10) -> 58.93314627 | E107: =(E105+T29)*M7+(1-M7)*($K7-10) -> 59.75708727 | F107: =(F105+U29)*N7+(1-N7)*($K7-10) -> 60.04238727

Sheet Trafiksäkerhet
A2: Hastig- | B2: Typ | C2: Bredd/miljö | D2: Tot per Mapkm 2010 | H2: Korsninspåslag
A3: hetsgräns | C3: m | D3: Dk | E3: SSk | M3: länk + nod result. | O3: Vföre | R3: Vrel | U3: Potensmodellen | V3: D | W3: SS
A4: 50 | B4: GIF | C4: Centrum | D4: 0.003671 | E4: =0.049619*D39 -> 0.0744285 | I4: Dk | J4: SSk | K4: Korsningspåslag | M4: Dk | N4: SSk | O4: Vpb | P4: Vlb | Q4: Vlbs | R4: lb | S4: lbs | U4: Landsbygd | V4: 4.6 | W4: 3.5
A5: 50 | B5: GIF | C5: Mellan | D5: 0.003105 | E5: =0.043057*D39 -> 0.0645855 | H5: 50 GIF | I5: =+AVERAGE(D4:D8)*V10 -> 0.002565493635 | J5: =+AVERAGE(E4:E8)*V11 -> 0.05498507872 | K5: 1.21 | L5: 1 | M5: =+I5*K5 -> 0.003104247298 | N5: =+K5*J5 -> 0.06653194525 | O5: =Hastighet!E28 -> 49.26315789 | P5: =Hastighet!F28 -> 49.26315789 | Q5: =Hastighet!G28 -> 49.26315789 | R5: =Hastighet!F27 -> 1 | S5: =Hastighet!G27 -> 1 | U5: Tätort | V5: 3 | W5: 2
A6: 50 | B6: GIF | C6: Ytter | D6: 0.002874 | E6: =0.04361*D39 -> 0.065415 | H6: - med ATK | L6: 2 | M6: =0.9*M5 -> 0.002793822568 | N6: =0.9*N5 -> 0.05987875072
A7: 50 | B7: stat, ej ML | C7: 6.7-7.9 | D7: 0.003859 | E7: =0.03841*D39 -> 0.057615 | H7: 70 GIF | I7: =+AVERAGE(D9:D10)*V10 -> 0.003278877531 | J7: =+AVERAGE(E9:E10)*V11 -> 0.04686952508 | K7: 1.32 | L7: 3 | M7: =+I7*K7 -> 0.004328118341 | N7: =+K7*J7 -> 0.06186777311 | O7: =Hastighet!E25 -> 68.94202899 | P7: =Hastighet!F25 -> 68.46715328 | Q7: =Hastighet!G25 -> 67.98529412 | R7: =Hastighet!F24 -> 0.9931119564 | S7: =Hastighet!G24 -> 0.9861226181 | U7: Formler
A8: 50 | B8: stat, ej ML | C8: 8-10 | D8: =D7 -> 0.003859 | E8: =E7 -> 0.057615 | H8: - med ATK | L8: 4 | M8: =0.9*M7 -> 0.003895306507 | N8: =0.9*N7 -> 0.05568099579 | U8: TS-EVA Excel-fil | V8: https://www.trafikverket.se/tseva
A9: 70 | B9: GIF | C9: Mellan | D9: 0.00459 | E9: =0.037296*D39 -> 0.055944 | H9: 70 2kf | I9: =+AVERAGE(D11:D12)*V10 -> 0.003054721809 | J9: =+AVERAGE(E11:E12)*V11 -> 0.05119832779 | K9: 1.32 | L9: 5 | M9: =+I9*K9 -> 0.004032232787 | N9: =+K9*J9 -> 0.06758179268 | O9: =Hastighet!M27 -> 83.24924925 | P9: =Hastighet!N27 -> 81.24923077 | Q9: =Hastighet!O27 -> 78.98734177 | R9: =Hastighet!N26 -> 0.9759755373 | S9: =Hastighet!O26 -> 0.9488054545 | U9: Riskmåttens förändring över tid 6.2.1.2 | V9: https://www.trafikverket.se/contentassets/0ebc841761f74f56b31c6eba59511bca/bygg-om/kapitel_6_trafiksakerhet.pdf
A10: 70 | B10: GIF | C10: Ytter | D10: 0.004289 | E10: =0.035365*D39 -> 0.0530475 | H10: - med ATK | L10: 6 | M10: =+M9*0.9 -> 0.003629009509 | N10: =+N9*0.9 -> 0.06082361341 | U10: Dödade minskar med 2% per år över tid (2010-2025) | V10: =0.98^15 -> 0.7385691026
A11: 70 | B11: stat, ej ML | C11: 6.7-7.9 | D11: 0.005609 | E11: =0.038796*D38 -> 0.0659532 | H11: 90 2kf | I11: =+AVERAGE(D15:D16)*V10 -> 0.003394463596 | J11: =+AVERAGE(E15:E16)*V11 -> 0.03665409597 | K11: 1.13 | L11: 7 | M11: =+I11*K11 -> 0.003835743863 | N11: =+K11*J11 -> 0.04141912844 | O11: =Hastighet!M25 -> 89.24929972 | P11: =Hastighet!N25 -> 84.74926254 | Q11: =Hastighet!O25 -> 79.9875 | R11: =Hastighet!N24 -> 0.9495790197 | S11: =Hastighet!O24 -> 0.8962255194 | U11: Svårt skadade minskar med 1% per år över tid (2010-2025) | V11: =0.99^15 -> 0.8600583546
A12: 70 | B12: stat, ej ML | C12: 8-10 | D12: 0.002663 | E12: =0.031238*D38 -> 0.0531046 | H12: - med ATK | L12: 8 | M12: =0.95*M11 -> 0.00364395667 | N12: =0.95*N11 -> 0.03934817202
A13: 80 | B13: stat, ej ML | C13: 6.7-7.9 | D13: 0.004565781079 | E13: =0.0279408560118313*D38 -> 0.04749945522 | H13: 100 2kf | I13: =+AVERAGE(D17:D18)*V10 -> 0.003227546979 | J13: =+AVERAGE(E17:E18)*V11 -> 0.03233139967 | K13: 1.08 | L13: 9 | M13: =+I13*K13 -> 0.003485750737 | N13: =+K13*J13 -> 0.03491791165 | O13: =Hastighet!M23 -> 95.4973822 | P13: =Hastighet!N23 -> 89.4972067 | Q13: =Hastighet!O23 -> 80.98765432 | R13: =Hastighet!N22 -> 0.9371692149 | S13: =Hastighet!O22 -> 0.8480615118
A14: 80 | B14: stat, ej ML | C14: 8-10 | D14: 0.002997273894 | E14: =0.0212449513616221*D38 -> 0.03611641731 | H14: - med ATK | L14: 10 | M14: =+M13 -> 0.003485750737 | N14: =+N13 -> 0.03491791165
A15: 90 | B15: stat, ej ML | C15: 6.7-7.9 | D15: 0.004237 | E15: =0.025133*D38 -> 0.0427261 | H15: 90 MLV | I15: =+AVERAGE(D15:D16)*V10 -> 0.003394463596 | J15: =+AVERAGE(E15:E16)*V11 -> 0.03665409597 | K15: 1.3 | L15: 11 | M15: =I15*K15 -> 0.004412802674 | N15: =J15*K15 -> 0.04765032476
A16: 90 | B16: stat, ej ML | C16: 8-10 | D16: 0.004955 | E16: =0.025006*D38 -> 0.0425102 | H16: - med ATK | L16: 12 | M16: =+M15 -> 0.004412802674 | N16: =N15 -> 0.04765032476
A17: 100 | B17: stat, ej ML | C17: 6.7-7.9 | D17: 0.004468 | E17: =0.015138*D38 -> 0.0257346 | H17: MLV 110 | I17: =D23*V10 -> 0.000892191476 | J17: =E23*V11 -> 0.009059854708 | K17: 1.15 | L17: 13 | M17: =I17*K17 -> 0.001026020197 | N17: =J17*L17 -> 0.1177781112 | O17: =Hastighet!E8 -> 74.24915825 | P17: =Hastighet!F8 -> 73.24914676 | Q17: =Hastighet!G8 -> 71.98611111 | R17: =Hastighet!H8 -> 0.9865316791 | S17: =Hastighet!I8 -> 0.9695209051
A18: 100 | B18: stat, ej ML | C18: 8-10 | D18: 0.004272 | E18: =0.029088*D38 -> 0.0494496 | H18: MV 110 | I18: =D21*V10 -> 0.000532508323 | J18: =E21*V11 -> 0.007687717609 | K18: 1.05 | L18: 14 | M18: =I18*K18 -> 0.0005591337392 | N18: =J18*K18 -> 0.008072103489
A19: 100 | B19: MLV | C19: 13-14m | D19: 0.00042 | E19: =0.008611*D38 -> 0.0146387
A20: 100 | B20: 2+1 Räcke Gles | C20: 9-13m | D20: 0.0004050559337 | E20: =0.00827547133480904*D38 -> 0.01406830127
A21: 110 | B21: MV räcke | C21: 21,5m | D21: 0.000721 | E21: =0.005258*D38 -> 0.0089386
A22: 120 | B22: MV räcke | C22: <24,5 | D22: 0.000951 | E22: =0.022028*D38 -> 0.0374476
A23: 110 | B23: MLV | C23: 13-14 | D23: 0.001208 | E23: 0.010534
B37: Bortfallsfaktorer | C37: D | D37: SS | E37: LS | F37: EG
B38: Landsbygd | C38: 1 | D38: 1.7 | E38: 1.7 | F38: 7
B39: Tätort | C39: 1 | D39: 1.5 | E39: 1.5 | F39: 7

Sheet CO2
A1: CO2-utsläpp i gram per fordonskilometer enligt nivå 2025 | J1: y=kx+m | L1: k | M1: m | O1: y=k1x^2+k2x+m | P1: k1 | Q1: k2 | R1: m | T1: y=k1x^2+k2x+m | U1: k1 | V1: k2 | W1: m
A2: V | B2: Pb | D2: Lbu | F2: Lbs | K2: PB tätort | L2: 0.1087 | M2: 101.89 | O2: LBU tätort | P2: 0.1218 | Q2: -15.126 | R2: 849.71 | T2: LBS tätort | U2: 0.1879 | V2: -25.239 | W2: 1469
B3: Landsbygd | C3: Tätort | D3: Landsbygd | E3: Tätort | F3: Landsbygd | G3: Tätort | K3: PB landsbygd | L3: 0.9213 | M3: 25.528 | O3: LBU landsbygd | Q3: 1.2558 | R3: 265.06 | T3: LBS landsbygd | V3: 0.523 | W3: 525.2
A4: 30
A5: 31
A6: 32 | R6: Fordonstyp | S6: Viktning
A7: 33 | R7: Pb | S7: 0.698
A8: 34 | R8: Lbu | S8: 0.77
A9: 35 | C9: =(A9*$L$2+$M$2)*$S$7 -> 73.774761 | E9: =(A9^2*$P$2+A9*$Q$2+$R$2)*$S$8 -> 361.51885 | G9: =(A9^2*$U$2+A9*$V$2+$W$2)*$S$9 -> 677.124375 | R9: Lbs | S9: 0.83
A10: 36 | C10: =(A10*$L$2+$M$2)*$S$7 -> 73.8506336 | E10: 356.530636 | G10: 667.248952
A11: 37 | C11: 73.9265062 | E11: 351.729994 | G11: 657.685443
A12: 38 | C12: 74.0023788 | E12: 347.116924 | G12: 648.433848
A13: 39 | C13: 74.0782514 | E13: 342.691426 | G13: 639.494167
A14: 40 | C14: 74.154124 | E14: 338.4535 | G14: 630.8664
A15: 41 | C15: 74.2299966 | E15: 334.403146 | G15: 622.550547
A16: 42 | C16: 74.3058692 | E16: 330.540364 | G16: 614.546608
A17: 43 | C17: 74.3817418 | E17: 326.865154 | G17: 606.854583
A18: 44 | C18: 74.4576144 | E18: 323.377516 | G18: 599.474472
A19: 45 | C19: 74.533487 | E19: 320.07745 | G19: 592.406275
A20: 46 | C20: 74.6093596 | E20: 316.964956 | G20: 585.649992
A21: 47 | C21: 74.6852322 | E21: 314.040034 | G21: 579.205623
A22: 48 | C22: 74.7611048 | E22: 311.302684 | G22: 573.073168
A23: 49 | C23: 74.8369774 | E23: 308.752906 | G23: 567.252627
A24: 50 | C24: 74.91285 | E24: 306.3907 | G24: 561.744
A25: 51 | C25: 74.9887226 | E25: 304.216066 | G25: 556.547287
A26: 52 | C26: 75.0645952 | E26: 302.229004 | G26: 551.662488
A27: 53 | C27: 75.1404678 | E27: 300.429514 | G27: 547.089603
A28: 54 | C28: 75.2163404 | E28: 298.817596 | G28: 542.828632
A29: 55 | C29: 75.292213 | E29: 297.39325 | G29: 538.879575
A30: 56 | C30: 75.3680856 | E30: 296.156476 | G30: 535.242432
A31: 57 | C31: 75.4439582 | E31: 295.107274 | G31: 531.917203
A32: 58 | C32: 75.5198308 | E32: 294.245644 | G32: 528.903888
A33: 59 | C33: 75.5957034 | E33: 293.571586 | G33: 526.202487
A34: 60 | C34: 75.671576 | E34: 293.0851 | G34: 523.813
A35: 61 | C35: 75.7474486 | E35: 292.786186 | G35: 521.735427
A36: 62 | C36: 75.8233212 | E36: 292.674844 | G36: 519.969768
A37: 63 | C37: 75.8991938 | E37: 292.751074 | G37: 518.516023
A38: 64 | C38: 75.9750664 | E38: 293.014876 | G38: 517.374192
A39: 65 | C39: 76.050939 | E39: 293.46625 | G39: 516.544275
A40: 66 | B40: =(A40*$L$3+$M$3)*$S$7 -> 60.2609924 | C40: 76.1268116 | D40: =(A40*$Q$3+$R$3)*$S$8 -> 267.915956 | E40: 294.105196 | F40: =(A40^2*$U$3+A40*$V$3+$W$3)*$S$9 -> 464.56594 | G40: 516.026272
A41: 67 | B41: 60.9040598 | C41: 76.2026842 | D41: 268.882922 | E41: 294.931714 | F41: 465.00003 | G41: 515.820183
A42: 68 | B42: 61.5471272 | C42: 76.2785568 | D42: 269.849888 | E42: 295.945804 | F42: 465.43412 | G42: 515.926008
A43: 69 | B43: 62.1901946 | C43: 76.3544294 | D43: 270.816854 | E43: 297.147466 | F43: 465.86821 | G43: 516.343747
A44: 70 | B44: 62.833262 | C44: 76.430302 | D44: 271.78382 | E44: 298.5367 | F44: 466.3023 | G44: 517.0734
A45: 71 | B45: 63.4763294 | D45: 272.750786 | F45: 466.73639
A46: 72 | B46: 64.1193968 | D46: 273.717752 | F46: 467.17048
A47: 73 | B47: 64.7624642 | D47: 274.684718 | F47: 467.60457
A48: 74 | B48: 65.4055316 | D48: 275.651684 | F48: 468.03866
A49: 75 | B49: 66.048599 | D49: 276.61865 | F49: 468.47275
A50: 76 | B50: 66.6916664 | D50: 277.585616 | F50: 468.90684
A51: 77 | B51: 67.3347338 | D51: 278.552582 | F51: 469.34093
A52: 78 | B52: 67.9778012 | D52: 279.519548 | F52: 469.77502
A53: 79 | B53: 68.6208686 | D53: 280.486514 | F53: 470.20911
A54: 80 | B54: 69.263936 | D54: 281.45348 | F54: 470.6432
A55: 81 | B55: 69.9070034 | D55: 282.420446 | F55: 471.07729
A56: 82 | B56: 70.5500708 | D56: 283.387412 | F56: 471.51138
A57: 83 | B57: 71.1931382 | D57: 284.354378 | F57: 471.94547
A58: 84 | B58: 71.8362056 | D58: 285.321344 | F58: 472.37956
A59: 85 | B59: 72.479273 | D59: 286.28831 | F59: 472.81365
A60: 86 | B60: 73.1223404 | D60: 287.255276 | F60: 473.24774
A61: 87 | B61: 73.7654078 | D61: 288.222242 | F61: 473.68183
A62: 88 | B62: 74.4084752 | D62: 289.189208 | F62: 474.11592
A63: 89 | B63: 75.0515426 | D63: 290.156174 | F63: 474.55001
A64: 90 | B64: 75.69461 | D64: 291.12314 | F64: 474.9841
A65: 91 | B65: 76.3376774 | D65: 292.090106 | F65: 475.41819
A66: 92 | B66: 76.9807448 | D66: 293.057072 | F66: 475.85228
A67: 93 | B67: 77.6238122 | D67: 294.024038 | F67: 476.28637
A68: 94 | B68: 78.2668796 | D68: 294.991004 | F68: 476.72046
A69: 95 | B69: 78.909947 | D69: 295.95797 | F69: 477.15455
A70: 96 | B70: 79.5530144 | D70: 296.924936 | F70: 477.58864
A71: 97 | B71: 80.1960818 | D71: 297.891902 | F71: 478.02273
A72: 98 | B72: =(A72*$L$3+$M$3)*$S$7 -> 80.8391492 | D72: =(A72*$Q$3+$R$3)*$S$8 -> 298.858868 | F72: =(A72^2*$U$3+A72*$V$3+$W$3)*$S$9 -> 478.45682
A73: 99 | B73: 81.4822166 | D73: 299.825834 | F73: 478.89091
A74: 100 | B74: 82.125284 | D74: 300.7928 | F74: 479.325
A75: 101 | B75: 82.7683514 | D75: 301.759766 | F75: 479.75909
A76: 102 | B76: 83.4114188 | D76: 302.726732 | F76: 480.19318
A77: 103 | B77: 84.0544862 | D77: 303.693698 | F77: 480.62727
A78: 104 | B78: 84.6975536 | D78: 304.660664 | F78: 481.06136
A79: 105 | B79: 85.340621 | D79: 305.62763 | F79: 481.49545
A80: 106 | B80: 85.9836884 | D80: 306.594596 | F80: 481.92954
A81: 107 | B81: 86.6267558 | D81: 307.561562 | F81: 482.36363
A82: 108 | B82: 87.2698232 | D82: 308.528528 | F82: 482.79772
A83: 109 | B83: 87.9128906 | D83: 309.495494 | F83: 483.23181
A84: 110 | B84: 88.555958 | D84: 310.46246 | F84: 483.6659
A85: 111 | B85: 89.1990254 | D85: 311.429426 | F85: 484.09999
A86: 112 | B86: 89.8420928 | D86: 312.396392 | F86: 484.53408
A87: 113 | B87: 90.4851602 | D87: 313.363358 | F87: 484.96817
A88: 114 | B88: 91.1282276 | D88: 314.330324 | F88: 485.40226
A89: 115 | B89: 91.771295 | D89: 315.29729 | F89: 485.83635
A90: 116 | B90: 92.4143624 | D90: 316.264256 | F90: 486.27044
A91: 117 | B91: 93.0574298 | D91: 317.231222 | F91: 486.70453
A92: 118 | B92: 93.7004972 | D92: 318.198188 | F92: 487.13862
A93: 119 | B93: 94.3435646 | D93: 319.165154 | F93: 487.57271
A94: 120 | B94: 94.986632 | D94: 320.13212 | F94: 488.0068
A95: 121 | B95: 95.6296994 | D95: 321.099086 | F95: 488.44089
A96: 122 | B96: 96.2727668 | D96: 322.066052 | F96: 488.87498
A97: 123 | B97: 96.9158342 | D97: 323.033018 | F97: 489.30907
A98: 124 | B98: 97.5589016 | D98: 323.999984 | F98: 489.74316
A99: 125 | B99: 98.201969 | D99: 324.96695 | F99: 490.17725
A100: 126 | B100: 98.8450364 | D100: 325.933916 | F100: 490.61134
A101: 127 | B101: 99.4881038 | D101: 326.900882 | F101: 491.04543
A102: 128 | B102: 100.1311712 | D102: 327.867848 | F102: 491.47952
A103: 129 | B103: 100.7742386 | D103: 328.834814 | F103: 491.91361
A104: 130 | B104: =(A104*$L$3+$M$3)*$S$7 -> 101.417306 | D104: 329.80178 | F104: 492.3477

Sheet Version
A2: Version 0.4
A3: 1) Potensfel rättat i CO2-beräkning
A4: 2) Indata-kolumner från Reg Ö
A5: 3) Viktsfaktor i VQ-före rättad
A8: 4) Infört 2kf 70 före med/utan ATK och 2kf80 med/utan ATK efter
A10: 5) Infört MLV110 till MLV100
A12: 6) Rättat tidsfel i olycksmodell för MLV110
A14: V 0.44
A15: Gånger 10 för D o SS
A16: Kiloton för CO2
A17: Summa för tid
A19: V 0.45
A20: kolumn CC pekade tidigare fel till kolumn BG istället för BF. Valde därför CO2 för lbu istället för pb.
A22: V 0.46
A23: MLV 2+1 40 % i hastighetsflikens VQ avsåg tidigare S2 nu S1
A25: V 0.47
A26: Ombyggnad till MV110 tidigare endast från MLV110 nu även från MLV100
A28: V 1.0
A29: 1) VBA programmerad
A30: 2) Beräkningshjälp av ÅDT
A31: 3) Summa för respektive effekt på "Indata & Resulat
A32: 4) Hastighetssamband har uppdaterats till gällande effektsamband 2018-04-01
A33: 5) Trafiksäkerhetseffekter har uppdaterats utefter TS EVA 3.0
A34: 6) Koldioxidutsläpp har med indata från Helen Lindblom utefter beslutad politik 2019-10-03
A35: 7) D och SS beräknas återigen på årsbasis
A36: 8) Ytterligare mindre ändringar har gjorts i utformning av flikar och grafisk tydlighet
A38: V 2020:1
A39: 1) Trafikuppräkningstalen har uppdaterats för att överensstämma med nya trafikprognoser
A40: 2) Hastighetsvalen har uppdaterats för att motsvara nuvarande behov
A41: 3) CO2-värdering har uppdaterats för att spegla basprognosen
A42: 4) Ytterligare felkod har åtgärdats
A43: 5) Generella hastighetsgränser har uppdaterats till nedanstående effektsamband
B44: pb | C44: lb | D44: lbs
A45: 50-40 | B45: -1.83 | C45: -1.83 | D45: -1.83
A46: 70-60 | B46: =(0.5*B45)+(0.5*B47) -> -2.565 | C46: =(0.5*C45)+(0.5*C47) -> -1.865 | D46: =(0.5*D45)+(0.5*D47) -> -1.415
A47: 90-80 | B47: -3.3 | C47: -1.9 | D47: -1
A48: 100-80 | B48: =(0.5*-5.4)+(0.5*-5.1) -> -5.25 | C48: =(0.5*-3.4)+(0.5*-4.1) -> -3.75 | D48: =(0.5*-2.6)+(0.5*0.1) -> -1.25
A49: 110-100 | B49: -2.3 | C49: 0 | D49: -0.5
A50: 110-120 | B50: 3.7 | C50: 3.2 | D50: 0
A51: 90-100 | B51: 2.4 | C51: 1.9 | D51: 0
A52: 6) Ytterligare mindre ändringar har gjorts i utformning av flikar och grafisk tydlighet
A54: V 2021:1
A55: Rättning av potensen i årlig procenuell tillväxt vid beräkning av ÅDT
A57: V 2023:1
A58: 1) Trafikuppräkningstalen har uppdaterats för att överensstämma med nya trafikprognoser
A59: 2) Uppdaterat länk till EVA:s hemsida för referens trafikuppräkningstal
A60: 3) Enklare redaktionella förändringar och förtydliganden
A61: Förändringarna gjorda 2023-03-05, Version publiceras 2023-04-03
